Workbook

Sheet At
B1: EN DÜŞÜK MALİYETLİ AT RASYONU | I1: Coşkun & İnal & İnal | N1: =TODAY() -> 2025-08-18 | R1: Selçuk Üniversitesi Veteriner Fakültesi Rasyon Hazırlama Programları
B2: HAZIRLAMA PROGRAMI
B3: VERİLECEK YEMLER | C3: MİKTAR,kg | D3: Fiyat, ₺ | E3: Yemler için | R3: Fİ & Şİ & BC
C4: =SUM(Rapor!AN5:AN25) -> 11.83 | D4: =SUMPRODUCT(C5:C25,D5:D25) -> 75.34 | E4: En az | F4: En çok | G4: BESİN MAD. | H4: İHTİYAÇ | I4: RASYON | J4: SONUÇ | K4: Rasyonda | L4: KM'de | N4: =Rapor!N4 -> Kesif yem; Miktarı,kg | O4: =Rapor!O4 -> 0.15
A5: 1 | B5: ÇAYIR (MEADOW) KURU OTU | C5: 8.5 | D5: 6 | E5: 0 | F5: 10 | G5: KM, kg | H5: 11.25 | I5: =Rapor!I5 -> 11.1165 | J5: =Rapor!J5 -> TAMAM | M5: =Rapor!M5 -> CA'ın %'si | N5: =Rapor!N5 -> HP,% KM | O5: =Rapor!O5 -> -257.5321434
A6: 2 | B6: YULAF | C6: 3.3 | D6: 7 | E6: 0 | F6: 10 | G6: SE, Mcal | H6: 23.31 | I6: =Rapor!I6 -> 23.360805 | J6: =Rapor!J6 -> TAMAM | K6: =Rapor!K6 -> 1975 kcal/kg | L6: =Rapor!L6 -> 2101 kcal/kg | M6: =Rapor!M6 -> olarak KM | N6: =Rapor!N6 -> SE,Mcal/kg KM | O6: =Rapor!O6 -> -0.3805617978
A7: 4 | B7: REVİTAMİN HORSE (2 kg/t), (50-75 g/at, 25-50 g/tay) | C7: 0.01 | D7: 121 | E7: 0.01 | F7: 0.075 | G7: HP, g | H7: 767.8670886 | I7: =Rapor!I7 -> 1111.6725 | J7: =Rapor!J7 -> TAMAM | K7: =Rapor!K7 -> % 9,40 | L7: =Rapor!L7 -> % 10,00 | M7: =Rapor!M7 -> 2.2233 | N7: =Rapor!N7 -> Ca,% KM | O7: =Rapor!O7 -> 
A8: 4 | B8: TUZ | C8: 0.02 | D8: 1.5 | E8: 0 | F8: 0.1 | G8: Lizin, g | H8: 33.01828481 | I8: =Rapor!I8 -> 45.6171 | J8: =Rapor!J8 -> TAMAM | K8: =Rapor!K8 -> % 0,39 | L8: =Rapor!L8 -> % 0,41 | N8: =Rapor!N8 -> P,% KM | O8: =Rapor!O8 ->  | Q8: RASYON HAZIRLANAN ATIN :
C9: 0 | E9: 0 | F9: 0 | G9: Ca, g | H9: 35 | I9: =Rapor!I9 -> 50.6511 | J9: =Rapor!J9 -> TAMAM | K9: =Rapor!K9 -> % 0,43 | L9: =Rapor!L9 -> % 0,46 | Q9: Tipi : | R9: Emziren Kısrak
C10: 0 | E10: 0 | F10: 0 | G10: P, g | H10: 21 | I10: =Rapor!I10 -> 23.5953 | J10: =Rapor!J10 -> TAMAM | K10: =Rapor!K10 -> % 0,20 | L10: =Rapor!L10 -> % 0,21 | Q10: Yaşı : | R10: 0
C11: 0 | E11: 0 | F11: 0 | G11: Ca/P | H11: 1.666666667 | I11: =Rapor!I11 -> 2.146660564 | J11: =Rapor!J11 -> TAMAM | N11: Hayvanın tipi : | O11: =AnimalType -> Çalışan At | Q11: Ergin canlı ağırlığı : | R11: 550 kg
C12: 0 | E12: 0 | F12: 0 | G12: Mg, g | H12: 11.5 | I12: =Rapor!I12 -> 21.04675 | J12: =Rapor!J12 -> TAMAM | K12: =Rapor!K12 -> % 0,18 | L12: =Rapor!L12 -> % 0,19 | N12: Yaşı : | O12: =NRCAge -> 0 | P12: ay | Q12: Canlı ağırlığı : | R12: 500 kg
C13: 0 | E13: 0 | F13: 0 | G13: K, g | H13: 32 | I13: =Rapor!I13 -> 141.2328 | J13: =Rapor!J13 -> FAZLA | K13: =Rapor!K13 -> % 1,19 | L13: =Rapor!L13 -> % 1,27 | N13: Ergin ağırlığı : | O13: =NRCEA -> 500 | P13: kg | Q13: Çalışma durumu : | R13: 0
C14: 0 | E14: 0 | F14: 0 | G14: Na, g | H14: 17.75 | I14: =Rapor!I14 -> 19.37 | J14: =Rapor!J14 -> TAMAM | K14: =Rapor!K14 -> % 0,16 | L14: =Rapor!L14 -> % 0,17 | N14: Canlı ağırlığı : | O14: =NRCCA -> 500 | P14: kg | Q14: Yaşama Payı Seviyesi : | R14: 0
C15: 0 | E15: 0 | F15: 0 | G15: Cl, g | H15: 53.25 | I15: =Rapor!I15 -> 55.5525 | J15: =Rapor!J15 -> TAMAM | K15: =Rapor!K15 -> % 0,47 | L15: =Rapor!L15 -> % 0,50 | N15: Yaşama Payı Seviyesi : | O15: =MaintLevel -> 0 | P15: kg/gün | Q15: Gebelik Süresi : | R15: 1 ay
C16: 0 | E16: 0 | F16: 0 | G16: Fe, mg | H16: 450 | I16: =Rapor!I16 -> 1981.94 | J16: =Rapor!J16 -> TAMAM | K16: =Rapor!K16 -> 167,54 ppm | L16: =Rapor!L16 -> 178,29 ppm | N16: Çalışma durumu : | O16: =WorkLevel -> Orta | Q16: Emzirme Süresi : | R16: 3 gün
C17: 0 | E17: 0 | F17: 0 | G17: Cu, mg | H17: 112.5 | I17: =Rapor!I17 -> 122.2881 | J17: =Rapor!J17 -> TAMAM | K17: =Rapor!K17 -> 10,34 ppm | L17: =Rapor!L17 -> 11,00 ppm | N17: Gebelik Süresi : | O17: =NRCGS -> 0 | P17: ay
C18: 0 | E18: 0 | F18: 0 | G18: Zn, mg | H18: 450 | I18: =Rapor!I18 -> 509.622 | J18: =Rapor!J18 -> TAMAM | K18: =Rapor!K18 -> 43,08 ppm | L18: =Rapor!L18 -> 45,84 ppm | N18: Emzirme Süresi : | O18: =LaktSure -> 0 | P18: ay | R18: GÜNLÜK | S18: BESİN
C19: 0 | E19: 0 | F19: 0 | G19: Mn, mg | H19: 450 | I19: =Rapor!I19 -> 746.297 | J19: =Rapor!J19 -> TAMAM | K19: =Rapor!K19 -> 63,09 ppm | L19: =Rapor!L19 -> 67,13 ppm | Q19: YEM MADDELERİ | R19: MİKTAR,kg | S19: MADDELERİ | T19: İHTİYAÇ | U19: RASYON | V19: SONUÇ
C20: 0 | E20: 0 | F20: 0 | G20: Se, mg | H20: 1.125 | I20: =Rapor!I20 -> 1.22072 | J20: =Rapor!J20 -> TAMAM | K20: =Rapor!K20 -> 0,01 ppm | L20: =Rapor!L20 -> 0,01 ppm | Q20: BUĞDAY SAMANI | R20: 3 | S20: =G5 -> KM, kg | T20: 12.5 | U20: 12.38750002 | V20: TAMAM
C21: 0 | E21: 0 | F21: 0 | G21: Vit.A, IU | H21: 22500 | I21: =Rapor!I21 -> 123262.9161 | J21: =Rapor!J21 -> TAMAM | K21: =Rapor!K21 -> 10420 IU/kg | L21: =Rapor!L21 -> 11088 IU/kg | Q21: ÇAYIR KURU OTU,OLGUN | R21: 2.204355971 | S21: =G6 -> SE, Mcal | T21: 30.60833333 | U21: 30.33285845 | V21: TAMAM
C22: 0 | E22: 0 | F22: 0 | G22: Kaba Yem, % | H22: 50 | I22: =Rapor!I22 -> 72.71623263 | J22: =Rapor!J22 -> TAMAM | Q22: YONCA KURU OTU,OLGUN | R22: 3.117605654 | S22: HP, g | T22: 1467.5 | U22: 1454.2925 | V22: TAMAM
C23: 0 | E23: 0 | F23: 0 | G23: HK, % | K23: =Rapor!K23 -> % 5,87 | L23: =Rapor!L23 -> % 6,25 | Q23: ARPA, EZME | R23: 0.005662034425 | S23: Lizin, g | T23: 80.295 | U23: 79.57234507 | V23: TAMAM
C24: 0 | E24: 0 | F24: 0 | G24: HY, % | K24: =Rapor!K24 -> % 3,29 | L24: =Rapor!L24 -> % 3,51 | Q24: MISIR, KIRILMIŞ, KURU | R24: 3 | S24: Ca, g | T24: 55.88 | U24: 55.88000002 | V24: TAMAM
C25: 0 | E25: 0 | F25: 0 | G25: NDF, % | K25: =Rapor!K25 -> % 51,66 | L25: =Rapor!L25 -> % 54,98 | Q25: YULAF | R25: 0.7588438748 | S25: P, g | T25: 36.02777778 | U25: 36.02777776 | V25: TAMAM
G26: ADF, % | K26: =Rapor!K26 -> % 27,34 | L26: =Rapor!L26 -> % 29,10 | Q26: AYÇİÇEĞİ KÜSPESİ, SOLVENT, %28 HP | R26: 1.394270538 | S26: Ca/P | T26: 1.551025443 | U26: 1.551025445 | V26: TAMAM
Q27: LİZİN HCL | R27: 0.02929712895 | S27: Mg, g | T27: 10.86375 | U27: 27.73280271 | V27: Kabul edilebilir
Q28: TUZ | R28: 0.1 | S28: K, g | T28: 45.93 | U28: 157.0159291 | V28: FAZLA
Q29: VİTAMİN-MİNERAL KARMASI (KAVIMIX VM İŞ ATI)(1 KG/T) | R29: 0.01 | S29: Na, g | T29: 12.5415 | U29: 47.4079651 | V29: Kabul edilebilir
S30: Cl, g | T30: 45.5 | U30: 91.7300867 | V30: Kabul edilebilir
S31: Fe, mg | T31: 625 | U31: 2193.229083 | V31: Kabul edilebilir
S32: Cu, mg | T32: 125 | U32: 175.3240449 | V32: Kabul edilebilir
S33: Zn, mg | T33: 500 | U33: 878.986782 | V33: Kabul edilebilir
S34: Mn, mg | T34: 500 | U34: 934.5786336 | V34: Kabul edilebilir
S35: Se, mg | T35: 1.25 | U35: 4.55442862 | V35: Kabul edilebilir
S36: Vit.A, IU | T36: 30000 | U36: 84172.54309 | V36: Kabul edilebilir
S37: Kaba Yem, % | T37: 65 | U37: 61.54579266 | V37: TAMAM
Q42: TOPLAM = | R42: 13.6200352 | S42: kg
Q46: Kurum: | T46: 13.03.2019
Q47: SUVF | T47: Rasyonu Hazırlayan
T48: Şİ
AR133: 92 | AS133: 3,49 | AT133: 30,3 | AU133: 12,3 | AV133: 0,1 | AW133: 0,45 | AX133: 0,07 | AY133: 0,18 | AZ133: 0,1 | BA133: 0,88 | BB133: 1200 | BD133: 3

Sheet Rapor
B1: AT RASYONU HAZIRLAMA PROGRAMI | G1: =TODAY() -> 2025-08-18 | I1: Coşkun & İnal & İnal | R1: HESAPLAMA TABLOSU | AO1: =SUM(AO5:AO25) -> 11.1165 | AP1: 23.360805 | AQ1: 1111.6725 | AR1: 45.6171 | AS1: 389.652 | AT1: 6111.36 | AU1: 3234.63 | AV1: 694.944 | AW1: 50.6511 | AX1: 23.5953 | AY1: =SUM(AY5:AY25) -> 21.04675 | AZ1: 141.2328 | BA1: 19.37 | BB1: =SUM(BB5:BB25) -> 55.5525 | BC1: 31.1874 | BD1: =SUM(BD5:BD25) -> 1981.94 | BE1: 122.2881 | BF1: =SUM(BF5:BF25) -> 509.622 | BG1: 746.297 | BH1: 1.22072 | BI1: 123262.9161 | BK1: YEMLER
Q2: Kaba
C3: MİKTAR | D3: Fiyat, ₺ | E3: Yemler için | Q3: Yem | R3: YEMLER | S3: KM | T3: SE | U3: HP | V3: Liz | W3: HY | X3: NDF | Y3: ADF | Z3: HK | AA3: Ca | AB3: P | AC3: Mg | AD3: K | AE3: Na | AF3: Cl | AG3: S | AH3: Fe | AI3: Cu | AJ3: Zn | AK3: Mn | AL3: Se | AM3: Vit. A | AN3: Miktar | AO3: KM | AP3: SE | AQ3: HP | AR3: Liz | AS3: HY | AT3: NDF | AU3: ADF | AV3: HK | AW3: Ca | AX3: P | AY3: Mg | AZ3: K | BA3: Na | BB3: Cl | BC3: S | BD3: Fe | BE3: Cu | BF3: Zn | BG3: Mn | BH3: Se | BI3: Vit. A | BK3: KABA YEMLER | BL3: KM,% | BM3: SE,Mcal/kg | BN3: HP,% | BO3: Lizin,% | BP3: HY,% | BQ3: NDF,% | BR3: ADF,% | BS3: HK,% | BT3: Ca,% | BU3: P,% | BV3: Mg,% | BW3: K,% | BX3: Na,% | BY3: Cl,% | BZ3: S,% | CA3: Fe,mg/kg | CB3: Cu,mg/kg | CC3: Zn,mg/kg | CD3: Mn,mg/kg | CE3: Se,mg/kg | CF3: Vit.A,IU/kg | CG3: En az,kg | CH3: En çok,kg | CI3: Fiyat,TL
B4: VERİLECEK YEMLER | C4: =AN4 -> 11.83 | D4: =At!D4 -> 75.34 | E4: En az | F4: En çok | G4: BESİN MADDESİ | H4: İHTİYAÇ | I4: RASYON | J4: SONUÇ | K4: Rasyonda | L4: KM'de | N4: Kesif yem; Miktarı,kg | O4: =IF(H5-I5<=0,"",(H5-I5)/0.89) -> 0.15 | Q4: =SUM(Q5:Q25) -> 8.0835 | R4: Kaba Yemler | S4: 2 | T4: 3 | U4: 4 | V4: 5 | W4: 6 | X4: 7 | Y4: 8 | Z4: 9 | AA4: 10 | AB4: 11 | AC4: 12 | AD4: 13 | AE4: 14 | AF4: 15 | AG4: 16 | AH4: 17 | AI4: 18 | AJ4: 19 | AK4: 20 | AL4: 21 | AM4: 22 | AN4: =SUM(AN5:AN25) -> 11.83 | BK4: ARPA ÇİMİ | BL4: 11.9 | BM4: 3.58 | BN4: 20.5 | BO4: 0.92 | BP4: 2.94 | BQ4: 41.93 | BR4: 19.5 | BS4: 3.36 | BT4: 0.16 | BU4: 0.3 | BV4: 0.25 | BW4: 0.6 | BX4: 0.21 | BY4: 0.72 | BZ4: 0.22 | CA4: 121 | CB4: 6 | CC4: 21 | CD4: 21 | CE4: 0.12 | CI4: 7
A5: =At!A5 -> 1 | B5: =At!B5 -> ÇAYIR (MEADOW) KURU OTU | C5: =At!C5 -> 8.5 | D5: =At!D5 -> 6 | E5: =At!E5 -> 0 | F5: =At!F5 -> 10 | G5: KM, kg | H5: =At!H5 -> 11.25 | I5: =AO1 -> 11.1165 | J5: =IF(H5<=0,"",IF(I5>H5*1.1,"FAZLA",IF(I5<H5*0.9,"EKSİK","TAMAM"))) -> TAMAM | M5: CA'ın %'si | N5: HP,% KM | O5: =IF(H5-I5<=0,"", ((H7-I7)/10)/($H5-$I5) ) -> -257.5321434 | Q5: =IF(A5=0,0,IF(A5=1,AO5,0)) -> 8.0835 | R5: =IF(B5=0,0,IF(C5<=0,0,B5)) -> ÇAYIR (MEADOW) KURU OTU | S5: =IF($R5=0,0,VLOOKUP($R5,$BK$4:$CI$220,S$4,FALSE)) -> 95.1 | T5: 1.69 | U5: 8.7 | V5: 0.36 | W5: 3 | X5: 60 | Y5: 35 | Z5: 7 | AA5: 0.6 | AB5: 0.18 | AC5: =IF($R5=0,0,VLOOKUP($R5,$BK$4:$CI$220,AC$4,FALSE)) -> 0.17 | AD5: 1.58 | AE5: 0.12 | AF5: 0.5 | AG5: 0.3 | AH5: 200 | AI5: 8 | AJ5: 30 | AK5: 62 | AL5: 0 | AM5: 13393 | AN5: =IF(R5=0,0,C5) -> 8.5 | AO5: =IF(R5=0,0,IF(ISERROR(C5*S5/100)=TRUE,0,C5*S5/100)) -> 8.0835 | AP5: =IF(R5=0,0,IF(ISERROR(AO5*T5)=TRUE,0,AO5*T5)) -> 13.661115 | AQ5: =IF(R5=0,0,IF(ISERROR(AO5*U5*10)=TRUE,0,AO5*U5*10)) -> 703.2645 | AR5: =IF(R5=0,0,IF(ISERROR(AO5*V5*10)=TRUE,0,AO5*V5*10)) -> 29.1006 | AS5: =IF(R5=0,0,IF(ISERROR(AO5*W5*10)=TRUE,0,AO5*W5*10)) -> 242.505 | AT5: =IF(R5=0,0,IF(ISERROR(AO5*X5*10)=TRUE,0,AO5*X5*10)) -> 4850.1 | AU5: =IF(R5=0,0,IF(ISERROR(AO5*Y5*10)=TRUE,0,AO5*Y5*10)) -> 2829.225 | AV5: =IF(R5=0,0,IF(ISERROR(AO5*Z5*10)=TRUE,0,AO5*Z5*10)) -> 565.845 | AW5: =IF(R5=0,0,IF(ISERROR(AO5*AA5*10)=TRUE,0,AO5*AA5*10)) -> 48.501 | AX5: =IF(R5=0,0,IF(ISERROR(AO5*AB5*10)=TRUE,0,AO5*AB5*10)) -> 14.5503 | AY5: =IF(R5=0,0,IF(ISERROR(AO5*AC5*10)=TRUE,0,AO5*AC5*10)) -> 13.74195 | AZ5: =IF(R5=0,0,IF(ISERROR(AO5*AD5*10)=TRUE,0,AO5*AD5*10)) -> 127.7193 | BA5: =IF(R5=0,0,IF(ISERROR(AO5*AE5*10)=TRUE,0,AO5*AE5*10)) -> 9.7002 | BB5: =IF(R5=0,0,IF(ISERROR(AO5*AF5*10)=TRUE,0,AO5*AF5*10)) -> 40.4175 | BC5: =IF(R5=0,0,IF(ISERROR(AO5*AG5*10)=TRUE,0,AO5*AG5*10)) -> 24.2505 | BD5: =IF(R5=0,0,IF(ISERROR(AO5*AH5)=TRUE,0,AO5*AH5)) -> 1616.7 | BE5: =IF(R5=0,0,IF(ISERROR(AO5*AI5)=TRUE,0,AO5*AI5)) -> 64.668 | BF5: =IF(R5=0,0,IF(ISERROR(AO5*AJ5)=TRUE,0,AO5*AJ5)) -> 242.505 | BG5: =IF(R5=0,0,IF(ISERROR(AO5*AK5)=TRUE,0,AO5*AK5)) -> 501.177 | BH5: =IF(R5=0,0,IF(ISERROR(AO5*AL5)=TRUE,0,AO5*AL5)) -> 0 | BI5: =IF(R5=0,0,IF(ISERROR(AO5*AM5)=TRUE,0,AO5*AM5)) -> 108262.3155 | BK5: BAKLAGİL KURU OTU, KÖRPE | BL5: 84.2 | BM5: 2.62 | BN5: 20.5 | BO5: 1.05 | BP5: 2.1 | BQ5: 36.3 | BR5: 28.6 | BS5: 9.5 | BT5: 1.56 | BU5: 0.31 | BV5: 0.33 | BW5: 2.56 | BX5: 0.03 | BY5: 0.55 | BZ5: 0.33 | CA5: 213 | CB5: 10 | CC5: 26 | CD5: 49 | CE5: 0.2 | CG5: 0 | CH5: 2 | CI5: 7
A6: =At!A6 -> 2 | B6: =At!B6 -> YULAF | C6: =At!C6 -> 3.3 | D6: =At!D6 -> 7 | E6: =At!E6 -> 0 | F6: =At!F6 -> 10 | G6: SE, Mcal | H6: =At!H6 -> 23.31 | I6: =AP1 -> 23.360805 | J6: =IF(H6<=0,"",IF(I6>(H6*1.02),"FAZLA",IF(I6<(H6*0.98),"EKSİK","TAMAM"))) -> TAMAM | K6: =IF(I$6>0,CONCATENATE(TEXT((I6*1000)/C$4,"0")," kcal/kg"),"") -> 1975 kcal/kg | L6: =IF(I$6>0,CONCATENATE(TEXT((I6*1000)/I$5,"0")," kcal/kg"),"") -> 2101 kcal/kg | M6: olarak KM | N6: SE,Mcal/kg KM | O6: =IF(H5-I5<=0,"", ((H6-I6))/($H5-$I5) ) -> -0.3805617978 | Q6: 0 | R6: =IF(B6=0,0,IF(C6<=0,0,B6)) -> YULAF | S6: 91 | T6: 3.23 | U6: 13.6 | V6: 0.55 | W6: 4.9 | X6: 42 | Y6: 13.5 | Z6: 3.3 | AA6: 0.07 | AB6: 0.3 | AC6: 0.16 | AD6: 0.45 | AE6: 0.06 | AF6: 0.1 | AG6: 0.23 | AH6: 80 | AI6: 6.7 | AJ6: 39 | AK6: 40 | AL6: 0.24 | AM6: 0.2 | AN6: =IF(R6=0,0,C6) -> 3.3 | AO6: =IF(R6=0,0,IF(ISERROR(C6*S6/100)=TRUE,0,C6*S6/100)) -> 3.003 | AP6: =IF(R6=0,0,IF(ISERROR(AO6*T6)=TRUE,0,AO6*T6)) -> 9.69969 | AQ6: =IF(R6=0,0,IF(ISERROR(AO6*U6*10)=TRUE,0,AO6*U6*10)) -> 408.408 | AR6: =IF(R6=0,0,IF(ISERROR(AO6*V6*10)=TRUE,0,AO6*V6*10)) -> 16.5165 | AS6: =IF(R6=0,0,IF(ISERROR(AO6*W6*10)=TRUE,0,AO6*W6*10)) -> 147.147 | AT6: =IF(R6=0,0,IF(ISERROR(AO6*X6*10)=TRUE,0,AO6*X6*10)) -> 1261.26 | AU6: =IF(R6=0,0,IF(ISERROR(AO6*Y6*10)=TRUE,0,AO6*Y6*10)) -> 405.405 | AV6: =IF(R6=0,0,IF(ISERROR(AO6*Z6*10)=TRUE,0,AO6*Z6*10)) -> 99.099 | AW6: =IF(R6=0,0,IF(ISERROR(AO6*AA6*10)=TRUE,0,AO6*AA6*10)) -> 2.1021 | AX6: =IF(R6=0,0,IF(ISERROR(AO6*AB6*10)=TRUE,0,AO6*AB6*10)) -> 9.009 | AY6: =IF(R6=0,0,IF(ISERROR(AO6*AC6*10)=TRUE,0,AO6*AC6*10)) -> 4.8048 | AZ6: =IF(R6=0,0,IF(ISERROR(AO6*AD6*10)=TRUE,0,AO6*AD6*10)) -> 13.5135 | BA6: =IF(R6=0,0,IF(ISERROR(AO6*AE6*10)=TRUE,0,AO6*AE6*10)) -> 1.8018 | BB6: =IF(R6=0,0,IF(ISERROR(AO6*AF6*10)=TRUE,0,AO6*AF6*10)) -> 3.003 | BC6: =IF(R6=0,0,IF(ISERROR(AO6*AG6*10)=TRUE,0,AO6*AG6*10)) -> 6.9069 | BD6: =IF(R6=0,0,IF(ISERROR(AO6*AH6)=TRUE,0,AO6*AH6)) -> 240.24 | BE6: =IF(R6=0,0,IF(ISERROR(AO6*AI6)=TRUE,0,AO6*AI6)) -> 20.1201 | BF6: =IF(R6=0,0,IF(ISERROR(AO6*AJ6)=TRUE,0,AO6*AJ6)) -> 117.117 | BG6: =IF(R6=0,0,IF(ISERROR(AO6*AK6)=TRUE,0,AO6*AK6)) -> 120.12 | BH6: =IF(R6=0,0,IF(ISERROR(AO6*AL6)=TRUE,0,AO6*AL6)) -> 0.72072 | BI6: =IF(R6=0,0,IF(ISERROR(AO6*AM6)=TRUE,0,AO6*AM6)) -> 0.6006 | BK6: BAKLAGİL KURU OTU, OLGUN | BL6: 83.8 | BM6: 2.21 | BN6: 17.8 | BO6: 0.89 | BP6: 1.6 | BQ6: 50.9 | BR6: 39.5 | BS6: 9.2 | BT6: 1.22 | BU6: 0.28 | BV6: 0.27 | BW6: 2.38 | BX6: 0.02 | BY6: 0.48 | BZ6: 0.23 | CA6: 250 | CB6: 9 | CC6: 24 | CD6: 44 | CE6: 0.2 | CG6: 0 | CH6: 2 | CI6: 7
A7: =At!A7 -> 4 | B7: =At!B7 -> REVİTAMİN HORSE (2 kg/t), (50-75 g/at, 25-50 g/tay) | C7: =At!C7 -> 0.01 | D7: =At!D7 -> 121 | E7: =At!E7 -> 0.01 | F7: =At!F7 -> 0.075 | G7: HP, g | H7: =At!H7 -> 767.8670886 | I7: =AQ1 -> 1111.6725 | J7: =IF(H7<=0,"",IF(I7>(H7*0.99),"TAMAM","EKSİK")) -> TAMAM | K7: =IF(I7>0,CONCATENATE("% ",TEXT(I7/(C$4*1000)*100,"0,00")),"") -> % 9,40 | L7: =IF(I7>0,CONCATENATE("% ",TEXT(I7/(I$5*1000)*100,"0,00")),"") -> % 10,00 | M7: =IF(I5>0,I5/NRCCA*100,"") -> 2.2233 | N7: Ca,% KM | O7: =IF(H7-I7<=0,"", ((H9-I9)/10)/($H5-$I5) ) ->  | Q7: 0 | R7: REVİTAMİN HORSE (2 kg/t), (50-75 g/at, 25-50 g/tay) | S7: 100 | T7: 0 | U7: 0 | V7: 0 | W7: 0 | X7: 0 | Y7: 0 | Z7: 100 | AA7: 0.48 | AB7: 0.36 | AC7: 25 | AD7: 0 | AE7: 0 | AF7: 0 | AG7: 0.3 | AH7: 12500 | AI7: 3750 | AJ7: 15000 | AK7: 12500 | AL7: 50 | AM7: 1500000 | AN7: 0.01 | AO7: 0.01 | AP7: 0 | AQ7: 0 | AR7: 0 | AS7: 0 | AT7: 0 | AU7: 0 | AV7: 10 | AW7: 0.048 | AX7: 0.036 | AY7: 2.5 | AZ7: 0 | BA7: 0 | BB7: 0 | BC7: 0.03 | BD7: 125 | BE7: 37.5 | BF7: 150 | BG7: 125 | BH7: 0.5 | BI7: 15000 | BK7: BAKLAGİL KURU OTU, ORTA OLGUN | BL7: 83.9 | BM7: 2.43 | BN7: 20.8 | BO7: 1.06 | BP7: 2 | BQ7: 42.9 | BR7: 33.4 | BS7: 9.4 | BT7: 1.37 | BU7: 0.3 | BV7: 0.3 | BW7: 2.45 | BX7: 0.02 | BY7: 0.61 | BZ7: 0.31 | CA7: 207 | CB7: 9 | CC7: 24 | CD7: 46 | CE7: 0.2 | CG7: 0 | CH7: 2 | CI7: 7
A8: =At!A8 -> 4 | B8: =At!B8 -> TUZ | C8: =At!C8 -> 0.02 | D8: =At!D8 -> 1.5 | E8: =At!E8 -> 0 | F8: =At!F8 -> 0.1 | G8: Lizin, g | H8: =At!H8 -> 33.01828481 | I8: =AR1 -> 45.6171 | J8: =IF(H8<=0,"",IF(I8<(H8*0.98),"EKSİK","TAMAM")) -> TAMAM | K8: =IF(I8>0,CONCATENATE("% ",TEXT(I8/(C$4*1000)*100,"0,00")),"") -> % 0,39 | L8: =IF(I8>0,CONCATENATE("% ",TEXT(I8/(I$5*1000)*100,"0,00")),"") -> % 0,41 | N8: P,% KM | O8: =IF(H8-I8<=0,"", ((H10-I10)/10)/($H5-$I5) ) ->  | Q8: 0 | R8: TUZ | S8: 100 | T8: 0 | U8: 0 | V8: 0 | W8: 0 | X8: 0 | Y8: 0 | Z8: 100 | AA8: 0 | AB8: 0 | AC8: 0 | AD8: 0 | AE8: 39.34 | AF8: 60.66 | AG8: 0 | AH8: 0 | AI8: 0 | AJ8: 0 | AK8: 0 | AL8: 0 | AM8: 0 | AN8: 0.02 | AO8: 0.02 | AP8: 0 | AQ8: 0 | AR8: 0 | AS8: 0 | AT8: 0 | AU8: 0 | AV8: 20 | AW8: 0 | AX8: 0 | AY8: 0 | AZ8: 0 | BA8: 7.868 | BB8: 12.132 | BC8: 0 | BD8: 0 | BE8: 0 | BF8: 0 | BG8: 0 | BH8: 0 | BI8: 0 | BK8: BAKLAGİL MERASI, VEJETATİF | BL8: 21.4 | BM8: 2.71 | BN8: 26.5 | BO8: 1.37 | BP8: 3.7 | BQ8: 33.1 | BR8: 23.9 | BS8: 10 | BT8: 1.31 | BU8: 0.37 | BV8: 0.28 | BW8: 3.21 | BX8: 0.01 | BY8: 0.6 | BZ8: 0.31 | CA8: 215 | CB8: 10 | CC8: 33 | CD8: 54 | CE8: 0.2 | CF8: 0 | CI8: 7
A9: =At!A9 -> 0 | B9: =At!B9 -> 0 | C9: =At!C9 -> 0 | D9: =At!D9 -> 0 | E9: =At!E9 -> 0 | F9: =At!F9 -> 0 | G9: Ca, g | H9: =At!H9 -> 35 | I9: =AW1 -> 50.6511 | J9: =IF(H9<=0,"", IF(I9>=H9*K30,"AŞIRI", IF(I9>=H9*J30,"FAZLA", IF(I9>=H9*H30,"TAMAM","EKSİK"))) ) -> TAMAM | K9: =IF(I9>0,CONCATENATE("% ",TEXT(I9/(C$4*1000)*100,"0,00")),"") -> % 0,43 | L9: =IF(I9>0,CONCATENATE("% ",TEXT(I9/(I$5*1000)*100,"0,00")),"") -> % 0,46 | Q9: 0 | R9: 0 | S9: 0 | T9: 0 | U9: 0 | V9: 0 | W9: 0 | X9: 0 | Y9: 0 | Z9: 0 | AA9: 0 | AB9: 0 | AC9: 0 | AD9: 0 | AE9: 0 | AF9: 0 | AG9: 0 | AH9: 0 | AI9: 0 | AJ9: 0 | AK9: 0 | AL9: 0 | AM9: 0 | AN9: 0 | AO9: 0 | AP9: 0 | AQ9: 0 | AR9: 0 | AS9: 0 | AT9: 0 | AU9: 0 | AV9: 0 | AW9: 0 | AX9: 0 | AY9: 0 | AZ9: 0 | BA9: 0 | BB9: 0 | BC9: 0 | BD9: 0 | BE9: 0 | BF9: 0 | BG9: 0 | BH9: 0 | BI9: 0 | BK9: BUĞDAY KURU OTU, BAŞAKLI | BL9: 86.1 | BM9: 2.14 | BN9: 9.4 | BO9: 0.4 | BP9: 1.7 | BQ9: 61.1 | BR9: 38.1 | BS9: 6.7 | BT9: 0.31 | BU9: 0.2 | BV9: 0.13 | BW9: 1.71 | BX9: 0.06 | BY9: 0.38 | BZ9: 0.13 | CA9: 319 | CB9: 8 | CC9: 25 | CD9: 62 | CE9: 0 | CI9: 6
A10: =At!A10 -> 0 | B10: =At!B10 -> 0 | C10: =At!C10 -> 0 | D10: =At!D10 -> 0 | E10: =At!E10 -> 0 | F10: =At!F10 -> 0 | G10: P, g | H10: =At!H10 -> 21 | I10: =AX1 -> 23.5953 | J10: =IF(H10<=0,"", IF(I10>=H10*K31,"AŞIRI", IF(I10>=H10*J31,"FAZLA", IF(I10>=H10*H31,"TAMAM","EKSİK"))) ) -> TAMAM | K10: =IF(I10>0,CONCATENATE("% ",TEXT(I10/(C$4*1000)*100,"0,00")),"") -> % 0,20 | L10: =IF(I10>0,CONCATENATE("% ",TEXT(I10/(I$5*1000)*100,"0,00")),"") -> % 0,21 | Q10: 0 | R10: 0 | S10: 0 | T10: 0 | U10: 0 | V10: 0 | W10: 0 | X10: 0 | Y10: 0 | Z10: 0 | AA10: 0 | AB10: 0 | AC10: 0 | AD10: 0 | AE10: 0 | AF10: 0 | AG10: 0 | AH10: 0 | AI10: 0 | AJ10: 0 | AK10: 0 | AL10: 0 | AM10: 0 | AN10: 0 | AO10: 0 | AP10: 0 | AQ10: 0 | AR10: 0 | AS10: 0 | AT10: 0 | AU10: 0 | AV10: 0 | AW10: 0 | AX10: 0 | AY10: 0 | AZ10: 0 | BA10: 0 | BB10: 0 | BC10: 0 | BD10: 0 | BE10: 0 | BF10: 0 | BG10: 0 | BH10: 0 | BI10: 0 | BK10: BUĞDAY SAMANI | BL10: 92.7 | BM10: 1.76 | BN10: 4.8 | BO10: 0.16 | BP10: 1.6 | BQ10: 73 | BR10: 49.4 | BS10: 7.6 | BT10: 0.31 | BU10: 0.1 | BV10: 0.14 | BW10: 1.55 | BX10: 0.12 | BY10: 0.6 | BZ10: 0.11 | CA10: 172 | CB10: 6 | CC10: 16 | CD10: 67 | CE10: 0 | CG10: 0 | CH10: 3 | CI10: 1.5
A11: =At!A11 -> 0 | B11: =At!B11 -> 0 | C11: =At!C11 -> 0 | D11: =At!D11 -> 0 | E11: =At!E11 -> 0 | F11: =At!F11 -> 0 | G11: Ca/P | H11: =At!H11 -> 1.666666667 | I11: =I9/I10 -> 2.146660564 | J11: TAMAM | Q11: 0 | R11: 0 | S11: 0 | T11: 0 | U11: 0 | V11: 0 | W11: 0 | X11: 0 | Y11: 0 | Z11: 0 | AA11: 0 | AB11: 0 | AC11: 0 | AD11: 0 | AE11: 0 | AF11: 0 | AG11: 0 | AH11: 0 | AI11: 0 | AJ11: 0 | AK11: 0 | AL11: 0 | AM11: 0 | AN11: 0 | AO11: 0 | AP11: 0 | AQ11: 0 | AR11: 0 | AS11: 0 | AT11: 0 | AU11: 0 | AV11: 0 | AW11: 0 | AX11: 0 | AY11: 0 | AZ11: 0 | BA11: 0 | BB11: 0 | BC11: 0 | BD11: 0 | BE11: 0 | BF11: 0 | BG11: 0 | BH11: 0 | BI11: 0 | BK11: ÇAYIR (CARAMBA) KURU OTU, OLGUN | BL11: 85.6 | BM11: 1.84 | BN11: 10.3 | BO11: 0.3 | BP11: 3 | BQ11: 60 | BR11: 35 | BS11: 7 | BT11: 0.62 | BU11: 0.34 | BW11: 1.56 | BX11: 0.05 | BY11: 0.5 | BZ11: 0.3 | CA11: 200 | CB11: 8 | CC11: 30 | CD11: 62 | CF11: 2600 | CG11: 0 | CH11: 5 | CI11: 6
A12: =At!A12 -> 0 | B12: =At!B12 -> 0 | C12: =At!C12 -> 0 | D12: =At!D12 -> 0 | E12: =At!E12 -> 0 | F12: =At!F12 -> 0 | G12: Mg, g | H12: =At!H12 -> 11.5 | I12: =AY1 -> 21.04675 | J12: TAMAM | K12: =IF(I12>0,CONCATENATE("% ",TEXT(I12/(C$4*1000)*100,"0,00")),"") -> % 0,18 | L12: =IF(I12>0,CONCATENATE("% ",TEXT(I12/(I$5*1000)*100,"0,00")),"") -> % 0,19 | Q12: 0 | R12: 0 | S12: 0 | T12: 0 | U12: 0 | V12: 0 | W12: 0 | X12: 0 | Y12: 0 | Z12: 0 | AA12: 0 | AB12: 0 | AC12: 0 | AD12: 0 | AE12: 0 | AF12: 0 | AG12: 0 | AH12: 0 | AI12: 0 | AJ12: 0 | AK12: 0 | AL12: 0 | AM12: 0 | AN12: 0 | AO12: 0 | AP12: 0 | AQ12: 0 | AR12: 0 | AS12: 0 | AT12: 0 | AU12: 0 | AV12: 0 | AW12: 0 | AX12: 0 | AY12: 0 | AZ12: 0 | BA12: 0 | BB12: 0 | BC12: 0 | BD12: 0 | BE12: 0 | BF12: 0 | BG12: 0 | BH12: 0 | BI12: 0 | BK12: ÇAYIR (MEADOW) KURU OTU | BL12: 95.1 | BM12: 1.69 | BN12: 8.7 | BO12: 0.36 | BP12: 3 | BQ12: 60 | BR12: 35 | BS12: 7 | BT12: 0.6 | BU12: 0.18 | BV12: 0.17 | BW12: 1.58 | BX12: 0.12 | BY12: 0.5 | BZ12: 0.3 | CA12: 200 | CB12: 8 | CC12: 30 | CD12: 62 | CF12: 13393 | CG12: 0 | CH12: 10 | CI12: 6
A13: =At!A13 -> 0 | B13: =At!B13 -> 0 | C13: =At!C13 -> 0 | D13: =At!D13 -> 0 | E13: =At!E13 -> 0 | F13: =At!F13 -> 0 | G13: K, g | H13: =At!H13 -> 32 | I13: =AZ1 -> 141.2328 | J13: FAZLA | K13: =IF(I13>0,CONCATENATE("% ",TEXT(I13/(C$4*1000)*100,"0,00")),"") -> % 1,19 | L13: =IF(I13>0,CONCATENATE("% ",TEXT(I13/(I$5*1000)*100,"0,00")),"") -> % 1,27 | Q13: 0 | R13: 0 | S13: 0 | T13: 0 | U13: 0 | V13: 0 | W13: 0 | X13: 0 | Y13: 0 | Z13: 0 | AA13: 0 | AB13: 0 | AC13: 0 | AD13: 0 | AE13: 0 | AF13: 0 | AG13: 0 | AH13: 0 | AI13: 0 | AJ13: 0 | AK13: 0 | AL13: 0 | AM13: 0 | AN13: 0 | AO13: 0 | AP13: 0 | AQ13: 0 | AR13: 0 | AS13: 0 | AT13: 0 | AU13: 0 | AV13: 0 | AW13: 0 | AX13: 0 | AY13: 0 | AZ13: 0 | BA13: 0 | BB13: 0 | BC13: 0 | BD13: 0 | BE13: 0 | BF13: 0 | BG13: 0 | BH13: 0 | BI13: 0 | BK13: ÇAYIR KELPKUYRUĞU (TIMOTHY) KURU OTU, ÇİÇ.BAŞI | BL13: 89.1 | BM13: 2.06 | BN13: 10.8 | BO13: 0.55 | BP13: 3 | BQ13: 60 | BR13: 35 | BS13: 7 | BT13: 0.51 | BU13: 0.29 | BV13: 0.13 | BW13: 2.41 | BX13: 0.01 | BY13: 0.5 | BZ13: 0.3 | CA13: 200 | CB13: 8 | CC13: 30 | CD13: 62 | CF13: 21000 | CG13: 0 | CH13: 8 | CI13: 6
A14: =At!A14 -> 0 | B14: =At!B14 -> 0 | C14: =At!C14 -> 0 | D14: =At!D14 -> 0 | E14: =At!E14 -> 0 | F14: =At!F14 -> 0 | G14: Na, g | H14: =At!H14 -> 17.75 | I14: =BA1 -> 19.37 | J14: TAMAM | K14: =IF(I14>0,CONCATENATE("% ",TEXT(I14/(C$4*1000)*100,"0,00")),"") -> % 0,16 | L14: =IF(I14>0,CONCATENATE("% ",TEXT(I14/(I$5*1000)*100,"0,00")),"") -> % 0,17 | Q14: 0 | R14: 0 | S14: 0 | T14: 0 | U14: 0 | V14: 0 | W14: 0 | X14: 0 | Y14: 0 | Z14: 0 | AA14: 0 | AB14: 0 | AC14: 0 | AD14: 0 | AE14: 0 | AF14: 0 | AG14: 0 | AH14: 0 | AI14: 0 | AJ14: 0 | AK14: 0 | AL14: 0 | AM14: 0 | AN14: 0 | AO14: 0 | AP14: 0 | AQ14: 0 | AR14: 0 | AS14: 0 | AT14: 0 | AU14: 0 | AV14: 0 | AW14: 0 | AX14: 0 | AY14: 0 | AZ14: 0 | BA14: 0 | BB14: 0 | BC14: 0 | BD14: 0 | BE14: 0 | BF14: 0 | BG14: 0 | BH14: 0 | BI14: 0 | BK14: ÇAYIR KELPKUYRUĞU (TIMOTHY) KURU OTU, ÇİÇ.ORTASI | BL14: 88.9 | BM14: 1.99 | BN14: 9.7 | BO14: 0.5 | BP14: 3 | BQ14: 60 | BR14: 35 | BS14: 7 | BT14: 0.48 | BU14: 0.23 | BV14: 0.13 | BW14: 1.82 | BX14: 0.01 | BY14: 0.5 | BZ14: 0.3 | CA14: 200 | CB14: 8 | CC14: 30 | CD14: 62 | CF14: 21320 | CG14: 0 | CH14: 8 | CI14: 6
A15: =At!A15 -> 0 | B15: =At!B15 -> 0 | C15: =At!C15 -> 0 | D15: =At!D15 -> 0 | E15: =At!E15 -> 0 | F15: =At!F15 -> 0 | G15: Cl, g | H15: =At!H15 -> 53.25 | I15: =BB1 -> 55.5525 | J15: TAMAM | K15: =IF(I15>0,CONCATENATE("% ",TEXT(I15/(C$4*1000)*100,"0,00")),"") -> % 0,47 | L15: =IF(I15>0,CONCATENATE("% ",TEXT(I15/(I$5*1000)*100,"0,00")),"") -> % 0,50 | Q15: 0 | R15: 0 | S15: =IF($R15=0,0,VLOOKUP($R15,$BK$4:$CI$220,S$4,FALSE)) -> 0 | T15: 0 | U15: 0 | V15: 0 | W15: 0 | X15: 0 | Y15: 0 | Z15: 0 | AA15: 0 | AB15: 0 | AC15: =IF($R15=0,0,VLOOKUP($R15,$BK$4:$CI$220,AC$4,FALSE)) -> 0 | AD15: 0 | AE15: 0 | AF15: 0 | AG15: 0 | AH15: 0 | AI15: 0 | AJ15: 0 | AK15: 0 | AL15: 0 | AM15: 0 | AN15: 0 | AO15: 0 | AP15: 0 | AQ15: 0 | AR15: 0 | AS15: 0 | AT15: 0 | AU15: 0 | AV15: 0 | AW15: 0 | AX15: 0 | AY15: 0 | AZ15: 0 | BA15: 0 | BB15: 0 | BC15: 0 | BD15: 0 | BE15: 0 | BF15: 0 | BG15: 0 | BH15: 0 | BI15: 0 | BK15: ÇAYIR KELPKUYRUĞU (TIMOTHY) KURU OTU, ÇİÇ.SONU | BL15: 88.3 | BM15: 1.8 | BN15: 7.8 | BO15: 0.45 | BP15: 3 | BQ15: 60 | BR15: 35 | BS15: 7 | BT15: 0.38 | BU15: 0.15 | BV15: 0.09 | BW15: 1.61 | BX15: 0.07 | BY15: 0.5 | BZ15: 0.3 | CA15: 200 | CB15: 8 | CC15: 30 | CD15: 62 | CG15: 0 | CH15: 8 | CI15: 6
A16: =At!A16 -> 0 | B16: =At!B16 -> 0 | C16: =At!C16 -> 0 | D16: =At!D16 -> 0 | E16: =At!E16 -> 0 | F16: =At!F16 -> 0 | G16: Fe, mg | H16: =At!H16 -> 450 | I16: =BD1 -> 1981.94 | J16: TAMAM | K16: =IF(I16>0,CONCATENATE(TEXT(I16/C$4,"0,00")," ppm"),"") -> 167,54 ppm | L16: =IF(I16>0,CONCATENATE(TEXT(I16/I$5,"0,00")," ppm"),"") -> 178,29 ppm | Q16: 0 | R16: 0 | S16: 0 | T16: 0 | U16: 0 | V16: 0 | W16: 0 | X16: 0 | Y16: 0 | Z16: 0 | AA16: 0 | AB16: 0 | AC16: 0 | AD16: 0 | AE16: 0 | AF16: 0 | AG16: 0 | AH16: 0 | AI16: 0 | AJ16: 0 | AK16: 0 | AL16: 0 | AM16: 0 | AN16: 0 | AO16: 0 | AP16: 0 | AQ16: 0 | AR16: 0 | AS16: 0 | AT16: 0 | AU16: 0 | AV16: 0 | AW16: 0 | AX16: 0 | AY16: 0 | AZ16: 0 | BA16: 0 | BB16: 0 | BC16: 0 | BD16: 0 | BE16: 0 | BF16: 0 | BG16: 0 | BH16: 0 | BI16: 0 | BK16: ÇAYIR KELPKUYRUĞU (TIMOTHY) KURU OTU, TAM ÇİÇ. | BL16: 89.4 | BM16: 1.94 | BN16: 8.1 | BO16: 0.45 | BP16: 3 | BQ16: 60 | BR16: 35 | BS16: 7 | BT16: 0.43 | BU16: 0.2 | BV16: 0.09 | BW16: 1.99 | BX16: 0.07 | BY16: 0.5 | BZ16: 0.3 | CA16: 200 | CB16: 8 | CC16: 30 | CD16: 62 | CG16: 0 | CH16: 8 | CI16: 6
A17: =At!A17 -> 0 | B17: =At!B17 -> 0 | C17: =At!C17 -> 0 | D17: =At!D17 -> 0 | E17: =At!E17 -> 0 | F17: =At!F17 -> 0 | G17: Cu, mg | H17: =At!H17 -> 112.5 | I17: =BE1 -> 122.2881 | J17: TAMAM | K17: =IF(I17>0,CONCATENATE(TEXT(I17/C$4,"0,00")," ppm"),"") -> 10,34 ppm | L17: =IF(I17>0,CONCATENATE(TEXT(I17/I$5,"0,00")," ppm"),"") -> 11,00 ppm | Q17: 0 | R17: 0 | S17: 0 | T17: 0 | U17: 0 | V17: 0 | W17: 0 | X17: 0 | Y17: 0 | Z17: 0 | AA17: 0 | AB17: 0 | AC17: 0 | AD17: 0 | AE17: 0 | AF17: 0 | AG17: 0 | AH17: 0 | AI17: 0 | AJ17: 0 | AK17: 0 | AL17: 0 | AM17: 0 | AN17: 0 | AO17: 0 | AP17: 0 | AQ17: 0 | AR17: 0 | AS17: 0 | AT17: 0 | AU17: 0 | AV17: 0 | AW17: 0 | AX17: 0 | AY17: 0 | AZ17: 0 | BA17: 0 | BB17: 0 | BC17: 0 | BD17: 0 | BE17: 0 | BF17: 0 | BG17: 0 | BH17: 0 | BI17: 0 | BK17: ÇAYIR KELPKUYRUĞU (TIMOTHY), YAŞ, ÇİÇ.ORTASI | BL17: 29.2 | BM17: 2 | BN17: 9.1 | BO17: 0.5 | BP17: 3 | BQ17: 60 | BR17: 35 | BS17: 7 | BT17: 0.38 | BU17: 0.3 | BV17: 0.14 | BW17: 2.06 | BX17: 0.19 | BY17: 0.5 | BZ17: 0.3 | CA17: 200 | CB17: 8 | CC17: 30 | CD17: 62 | CF17: 77600 | CG17: 0 | CH17: 10 | CI17: 6
A18: =At!A18 -> 0 | B18: =At!B18 -> 0 | C18: =At!C18 -> 0 | D18: =At!D18 -> 0 | E18: =At!E18 -> 0 | F18: =At!F18 -> 0 | G18: Zn, mg | H18: =At!H18 -> 450 | I18: =BF1 -> 509.622 | J18: TAMAM | K18: =IF(I18>0,CONCATENATE(TEXT(I18/C$4,"0,00")," ppm"),"") -> 43,08 ppm | L18: =IF(I18>0,CONCATENATE(TEXT(I18/I$5,"0,00")," ppm"),"") -> 45,84 ppm | Q18: 0 | R18: 0 | S18: 0 | T18: 0 | U18: 0 | V18: 0 | W18: 0 | X18: 0 | Y18: 0 | Z18: 0 | AA18: 0 | AB18: 0 | AC18: 0 | AD18: 0 | AE18: 0 | AF18: 0 | AG18: 0 | AH18: 0 | AI18: 0 | AJ18: 0 | AK18: 0 | AL18: 0 | AM18: 0 | AN18: 0 | AO18: 0 | AP18: 0 | AQ18: 0 | AR18: 0 | AS18: 0 | AT18: 0 | AU18: 0 | AV18: 0 | AW18: 0 | AX18: 0 | AY18: 0 | AZ18: 0 | BA18: 0 | BB18: 0 | BC18: 0 | BD18: 0 | BE18: 0 | BF18: 0 | BG18: 0 | BH18: 0 | BI18: 0 | BK18: ÇAYIR KELPKUYRUĞU (TIMOTHY), YAŞ, ÇİÇ.ÖNCESİ | BL18: 26.7 | BM18: 2.37 | BN18: 12.2 | BO18: 0.57 | BP18: 3 | BQ18: 60 | BR18: 35 | BS18: 7 | BT18: 0.4 | BU18: 0.26 | BV18: 0.16 | BW18: 2.73 | BX18: 0.11 | BY18: 0.5 | BZ18: 0.3 | CA18: 200 | CB18: 8 | CC18: 30 | CD18: 62 | CF18: 93600 | CG18: 0 | CH18: 10 | CI18: 6
A19: =At!A19 -> 0 | B19: =At!B19 -> 0 | C19: =At!C19 -> 0 | D19: =At!D19 -> 0 | E19: =At!E19 -> 0 | F19: =At!F19 -> 0 | G19: Mn, mg | H19: =At!H19 -> 450 | I19: =BG1 -> 746.297 | J19: TAMAM | K19: =IF(I19>0,CONCATENATE(TEXT(I19/C$4,"0,00")," ppm"),"") -> 63,09 ppm | L19: =IF(I19>0,CONCATENATE(TEXT(I19/I$5,"0,00")," ppm"),"") -> 67,13 ppm | Q19: 0 | R19: 0 | S19: 0 | T19: 0 | U19: 0 | V19: 0 | W19: 0 | X19: 0 | Y19: 0 | Z19: 0 | AA19: 0 | AB19: 0 | AC19: 0 | AD19: 0 | AE19: 0 | AF19: 0 | AG19: 0 | AH19: 0 | AI19: 0 | AJ19: 0 | AK19: 0 | AL19: 0 | AM19: 0 | AN19: 0 | AO19: 0 | AP19: 0 | AQ19: 0 | AR19: 0 | AS19: 0 | AT19: 0 | AU19: 0 | AV19: 0 | AW19: 0 | AX19: 0 | AY19: 0 | AZ19: 0 | BA19: 0 | BB19: 0 | BC19: 0 | BD19: 0 | BE19: 0 | BF19: 0 | BG19: 0 | BH19: 0 | BI19: 0 | BK19: ÇAYIR KURU OTU,BOZKIRDAN | BL19: 91 | BM19: 1.62 | BN19: 6.4 | BO19: 0.35 | BP19: 3 | BQ19: 60 | BR19: 35 | BS19: 7 | BT19: 0.35 | BU19: 0.14 | BV19: 0.26 | BW19: 1.08 | BX19: 0.05 | BY19: 0.5 | BZ19: 0.3 | CA19: 200 | CB19: 8 | CC19: 30 | CD19: 62 | CF19: 4160 | CG19: 0 | CH19: 10 | CI19: 6
A20: =At!A20 -> 0 | B20: =At!B20 -> 0 | C20: =At!C20 -> 0 | D20: =At!D20 -> 0 | E20: =At!E20 -> 0 | F20: =At!F20 -> 0 | G20: Se, mg | H20: =At!H20 -> 1.125 | I20: =BH1 -> 1.22072 | J20: TAMAM | K20: =IF(I20>0,CONCATENATE(TEXT(I20/(C$4*1000)*100,"0,00")," ppm"),"") -> 0,01 ppm | L20: =IF(I20>0,CONCATENATE(TEXT(I20/(I$5*1000)*100,"0,00")," ppm"),"") -> 0,01 ppm | Q20: 0 | R20: 0 | S20: 0 | T20: 0 | U20: 0 | V20: 0 | W20: 0 | X20: 0 | Y20: 0 | Z20: 0 | AA20: 0 | AB20: 0 | AC20: 0 | AD20: 0 | AE20: 0 | AF20: 0 | AG20: 0 | AH20: 0 | AI20: 0 | AJ20: 0 | AK20: 0 | AL20: 0 | AM20: 0 | AN20: 0 | AO20: 0 | AP20: 0 | AQ20: 0 | AR20: 0 | AS20: 0 | AT20: 0 | AU20: 0 | AV20: 0 | AW20: 0 | AX20: 0 | AY20: 0 | AZ20: 0 | BA20: 0 | BB20: 0 | BC20: 0 | BD20: 0 | BE20: 0 | BF20: 0 | BG20: 0 | BH20: 0 | BI20: 0 | BK20: ÇAYIR KURU OTU,OLGUN | BL20: 91 | BM20: 1.75 | BN20: 7.7 | BO20: 0.35 | BP20: 3 | BQ20: 60 | BR20: 35 | BS20: 7 | BT20: 0.3 | BU20: 0.22 | BV20: 0.26 | BW20: 1.08 | BX20: 0.05 | BY20: 0.5 | BZ20: 0.3 | CA20: 200 | CB20: 8 | CC20: 30 | CD20: 62 | CF20: 2080 | CG20: 0 | CH20: 10 | CI20: 6
A21: =At!A21 -> 0 | B21: =At!B21 -> 0 | C21: =At!C21 -> 0 | D21: =At!D21 -> 0 | E21: =At!E21 -> 0 | F21: =At!F21 -> 0 | G21: Vit.A, IU | H21: =At!H21 -> 22500 | I21: =BI1 -> 123262.9161 | J21: TAMAM | K21: =IF(I21>0,CONCATENATE(TEXT(I21/C$4,"0")," IU/kg"),"") -> 10420 IU/kg | L21: =IF(I21>0,CONCATENATE(TEXT(I21/I$5,"0")," IU/kg"),"") -> 11088 IU/kg | Q21: 0 | R21: 0 | S21: 0 | T21: 0 | U21: 0 | V21: 0 | W21: 0 | X21: 0 | Y21: 0 | Z21: 0 | AA21: 0 | AB21: 0 | AC21: 0 | AD21: 0 | AE21: 0 | AF21: 0 | AG21: 0 | AH21: 0 | AI21: 0 | AJ21: 0 | AK21: 0 | AL21: 0 | AM21: 0 | AN21: 0 | AO21: 0 | AP21: 0 | AQ21: 0 | AR21: 0 | AS21: 0 | AT21: 0 | AU21: 0 | AV21: 0 | AW21: 0 | AX21: 0 | AY21: 0 | AZ21: 0 | BA21: 0 | BB21: 0 | BC21: 0 | BD21: 0 | BE21: 0 | BF21: 0 | BG21: 0 | BH21: 0 | BI21: 0 | BK21: ÇAYIR KURU OTU (KÖPEKDİŞİ, BERMUDAGRASS, TİFTON-85) KURU OTU, 3-4 HAFTALIK | BL21: 87.3 | BM21: 1.86 | BN21: 13.7 | BO21: 0.48 | BP21: 2.7 | BQ21: 76.9 | BR21: 36.2 | BS21: 6.5 | BT21: 0.39 | BU21: 0.22 | BV21: 0.15 | BW21: 1.4 | BX21: 0.14 | BY21: 0.54 | BZ21: 0.38 | CA21: 224 | CB21: 8 | CC21: 32 | CD21: 62 | CE21: 0 | CG21: 0 | CH21: 5 | CI21: 5
A22: =At!A22 -> 0 | B22: =At!B22 -> 0 | C22: =At!C22 -> 0 | D22: =At!D22 -> 0 | E22: =At!E22 -> 0 | F22: =At!F22 -> 0 | G22: Kaba Yem, % | H22: =At!H22 -> 50 | I22: =IF(Q4=0,0,Q4/I5*100) -> 72.71623263 | J22: =IF(H22<=0,"",IF(I22>=H22*0.9,"TAMAM","EKSİK")) -> TAMAM | Q22: 0 | R22: 0 | S22: 0 | T22: 0 | U22: 0 | V22: 0 | W22: 0 | X22: 0 | Y22: 0 | Z22: 0 | AA22: 0 | AB22: 0 | AC22: 0 | AD22: 0 | AE22: 0 | AF22: 0 | AG22: 0 | AH22: 0 | AI22: 0 | AJ22: 0 | AK22: 0 | AL22: 0 | AM22: 0 | AN22: 0 | AO22: 0 | AP22: 0 | AQ22: 0 | AR22: 0 | AS22: 0 | AT22: 0 | AU22: 0 | AV22: 0 | AW22: 0 | AX22: 0 | AY22: 0 | AZ22: 0 | BA22: 0 | BB22: 0 | BC22: 0 | BD22: 0 | BE22: 0 | BF22: 0 | BG22: 0 | BH22: 0 | BI22: 0 | BK22: ÇAYIR KURU OTU (KÖPEKDİŞİ,BERMUDAGRASS), BAŞAK. BAŞI | BL22: 87.1 | BM22: 1.87 | BN22: 10.4 | BO22: 0.36 | BP22: 2.7 | BQ22: 73.3 | BR22: 36.8 | BS22: 8.1 | BT22: 0.49 | BU22: 0.27 | BV22: 0.19 | BW22: 1.8 | BX22: 0.17 | BY22: 0.67 | BZ22: 0.48 | CA22: 224 | CB22: 8 | CC22: 32 | CD22: 62 | CE22: 0 | CG22: 0 | CH22: 5 | CI22: 5
A23: =At!A23 -> 0 | B23: =At!B23 -> 0 | C23: =At!C23 -> 0 | D23: =At!D23 -> 0 | E23: =At!E23 -> 0 | F23: =At!F23 -> 0 | G23: HK, % | K23: =IF(AV1>0,CONCATENATE("% ",TEXT(AV1/C$4/10,"0,00")),"") -> % 5,87 | L23: =IF(AV1>0,CONCATENATE("% ",TEXT(AV1/I$5/10,"0,00")),"") -> % 6,25 | Q23: 0 | R23: 0 | S23: 0 | T23: 0 | U23: 0 | V23: 0 | W23: 0 | X23: 0 | Y23: 0 | Z23: 0 | AA23: 0 | AB23: 0 | AC23: 0 | AD23: 0 | AE23: 0 | AF23: 0 | AG23: 0 | AH23: 0 | AI23: 0 | AJ23: 0 | AK23: 0 | AL23: 0 | AM23: 0 | AN23: 0 | AO23: 0 | AP23: 0 | AQ23: 0 | AR23: 0 | AS23: 0 | AT23: 0 | AU23: 0 | AV23: 0 | AW23: 0 | AX23: 0 | AY23: 0 | AZ23: 0 | BA23: 0 | BB23: 0 | BC23: 0 | BD23: 0 | BE23: 0 | BF23: 0 | BG23: 0 | BH23: 0 | BI23: 0 | BK23: ÇAYIR KURU OTU, SOĞUK MEVSİM, KÖRPE | BL23: 84 | BM23: 2.36 | BN23: 18 | BO23: 0.63 | BP23: 3.3 | BQ23: 49.6 | BR23: 31.4 | BS23: 9.2 | BT23: 0.72 | BU23: 0.34 | BV23: 0.23 | BW23: 2.57 | BX23: 0.03 | BY23: 0.42 | BZ23: 0.24 | CA23: 199 | CB23: 9 | CC23: 27 | CD23: 84 | CE23: 0.06 | CG23: 0 | CH23: 7 | CI23: 6
A24: =At!A24 -> 0 | B24: =At!B24 -> 0 | C24: =At!C24 -> 0 | D24: =At!D24 -> 0 | E24: =At!E24 -> 0 | F24: =At!F24 -> 0 | G24: HY, % | K24: =IF(AS1>0,CONCATENATE("% ",TEXT(AS1/C$4/10,"0,00")),"") -> % 3,29 | L24: =IF(AS1>0,CONCATENATE("% ",TEXT(AS1/I$5/10,"0,00")),"") -> % 3,51 | Q24: 0 | R24: 0 | S24: 0 | T24: 0 | U24: 0 | V24: 0 | W24: 0 | X24: 0 | Y24: 0 | Z24: 0 | AA24: 0 | AB24: 0 | AC24: 0 | AD24: 0 | AE24: 0 | AF24: 0 | AG24: 0 | AH24: 0 | AI24: 0 | AJ24: 0 | AK24: 0 | AL24: 0 | AM24: 0 | AN24: 0 | AO24: 0 | AP24: 0 | AQ24: 0 | AR24: 0 | AS24: 0 | AT24: 0 | AU24: 0 | AV24: 0 | AW24: 0 | AX24: 0 | AY24: 0 | AZ24: 0 | BA24: 0 | BB24: 0 | BC24: 0 | BD24: 0 | BE24: 0 | BF24: 0 | BG24: 0 | BH24: 0 | BI24: 0 | BK24: ÇAYIR KURU OTU, SOĞUK MEVSİM, OLGUN | BL24: 84.4 | BM24: 2.04 | BN24: 10.8 | BO24: 0.38 | BP24: 2 | BQ24: 69.1 | BR24: 41.6 | BS24: 7 | BT24: 0.47 | BU24: 0.26 | BV24: 0.18 | BW24: 1.97 | BX24: 0.02 | BY24: 0.66 | BZ24: 0.17 | CA24: 180 | CB24: 8 | CC24: 25 | CD24: 90 | CE24: 0.06 | CG24: 0 | CH24: 7 | CI24: 6
A25: =At!A25 -> 0 | B25: =At!B25 -> 0 | C25: =At!C25 -> 0 | D25: =At!D25 -> 0 | E25: =At!E25 -> 0 | F25: =At!F25 -> 0 | G25: NDF, % | K25: =IF(AT1>0,CONCATENATE("% ",TEXT(AT1/C$4/10,"0,00")),"") -> % 51,66 | L25: =IF(AT1>0,CONCATENATE("% ",TEXT(AT1/I$5/10,"0,00")),"") -> % 54,98 | Q25: 0 | R25: 0 | S25: 0 | T25: 0 | U25: 0 | V25: 0 | W25: 0 | X25: 0 | Y25: 0 | Z25: 0 | AA25: 0 | AB25: 0 | AC25: 0 | AD25: 0 | AE25: 0 | AF25: 0 | AG25: 0 | AH25: 0 | AI25: 0 | AJ25: 0 | AK25: 0 | AL25: 0 | AM25: 0 | AN25: 0 | AO25: 0 | AP25: 0 | AQ25: 0 | AR25: 0 | AS25: 0 | AT25: 0 | AU25: 0 | AV25: 0 | AW25: 0 | AX25: 0 | AY25: 0 | AZ25: 0 | BA25: 0 | BB25: 0 | BC25: 0 | BD25: 0 | BE25: 0 | BF25: 0 | BG25: 0 | BH25: 0 | BI25: 0 | BK25: ÇAYIR KURU OTU, SOĞUK MEVSİM, ORTA OLGUN | BL25: 83.8 | BM25: 2.18 | BN25: 13.3 | BO25: 0.46 | BP25: 2.5 | BQ25: 57.7 | BR25: 36.9 | BS25: 8.8 | BT25: 0.66 | BU25: 0.29 | BV25: 0.23 | BW25: 2.13 | BX25: 0.08 | BY25: 0.92 | BZ25: 0.24 | CA25: 194 | CB25: 9 | CC25: 25 | CD25: 72 | CE25: 0.06 | CG25: 0 | CH25: 7 | CI25: 6
G26: ADF, % | K26: =IF(AU1>0,CONCATENATE("% ",TEXT(AU1/C$4/10,"0,00")),"") -> % 27,34 | L26: =IF(AU1>0,CONCATENATE("% ",TEXT(AU1/I$5/10,"0,00")),"") -> % 29,10 | BK26: ÇAYIR MERASI, SOĞUK MEVSİM, VEJETATİF | BL26: 20.1 | BM26: 2.39 | BN26: 26.5 | BO26: 0.92 | BP26: 2.7 | BQ26: 45.8 | BR26: 25 | BS26: 9.8 | BT26: 0.56 | BU26: 0.44 | BV26: 0.2 | BW26: 3.36 | BX26: 0.02 | BY26: 0.56 | BZ26: 0.2 | CA26: 275 | CB26: 10 | CC26: 36 | CD26: 75 | CE26: 0 | CI26: 6
R27: Hayvanın Tipi | T27: Hayvanın tipi : | W27: Çalışan At | AB27: Hayvanın tipi : | AK27: Tüketim seviyesi : | AL27: =IF(OR(AnimalType="Yaşama Payı",AnimalType="Aygır",AnimalType="Gebe Kısrak")=TRUE, 2, IF(OR(AnimalType="Emziren Kısrak",AnimalType="Tay")=TRUE, 2.5, IF(AnimalType="Çalışan At", IF(WorkLevel="Hafif",2,IF(WorkLevel="Orta",2.25,IF(OR(WorkLevel="Ağır",WorkLevel="Çok Ağır")=TRUE,2.5,0))), 0) )) -> 2.25 | AO27: LaktSure | AP27: katsayı | AX27: SAYFA 14 | BK27: ÇAYIR SİLAJI, SOĞUK MEVSİM, KÖRPE | BL27: 36.2 | BM27: 2.3 | BN27: 16.8 | BO27: 0.55 | BP27: 2.8 | BQ27: 51 | BR27: 32.9 | BS27: 9.9 | BT27: 0.57 | BU27: 0.36 | BV27: 0.22 | BW27: 3.11 | BX27: 0.05 | BY27: 0.67 | BZ27: 0.21 | CA27: 280 | CB27: 9 | CC27: 31 | CD27: 56 | CE27: 0.09 | CG27: 0 | CH27: 4 | CI27: 4
R28: Yaşama Payı | T28: Yaşı : | AA28: ay | AB28: Yaşı : | AK28: FetalMass : | AL28: =0.0000001 * (NRCGS*30.4)^3.5512 * 0.01 * (NRCEA*0.097 ) -> 0 | AO28: 1 | AP28: 0.0326 | AS28: Ergin ağırlığa göre tayların beklenen canlı ağırlıkları,kg | BA28: Bazı ırkların ergin CA'ları, kg | BK28: ÇAYIR SİLAJI, SOĞUK MEVSİM, OLGUN | BL28: 38.7 | BM28: 1.98 | BN28: 12.7 | BO28: 0.43 | BP28: 3 | BQ28: 66.6 | BR28: 41.1 | BS28: 8 | BT28: 0.56 | BU28: 0.31 | BV28: 0.2 | BW28: 2.42 | BX28: 0.05 | BY28: 0.89 | BZ28: 0.2 | CA28: 327 | CB28: 9 | CC28: 30 | CD28: 90 | CE28: 0.09 | CG28: 0 | CH28: 4 | CI28: 4
H29: Alt | I29: Üst | J29: Fazla | K29: Aşırı | R29: Aygır | T29: Ergin ağırlığı : | W29: 500 | AA29: kg | AB29: Ergin ağırlığı : | AK29: PUMass : | AL29: =(-0.0135 + ((NRCGS*30.4) * 0.00009)) * BodyWeight -> -6.75 | AO29: 2 | AP29: 0.0324 | AS29: EA, kg | AT29: Yaş,ay | AU29: CA,kg | AV29: EA'ın %'si | BA29: Irk | BB29: CA | BI29: Yem | BK29: ÇAYIR SİLAJI, SOĞUK MEVSİM, ORTA OLGUN | BL29: 42 | BM29: 2.16 | BN29: 16.8 | BO29: 0.55 | BP29: 2.4 | BQ29: 58.2 | BR29: 35.2 | BS29: 8.7 | BT29: 0.6 | BU29: 0.36 | BV29: 0.21 | BW29: 2.78 | BX29: 0.05 | BY29: 0.67 | BZ29: 0.21 | CA29: 275 | CB29: 9 | CC29: 31 | CD29: 79 | CE29: 0.09 | CG29: 0 | CH29: 4 | CI29: 4
B30: Tipi : | C30: =AnimalType -> Çalışan At | G30: Ca, g | H30: 0.99 | I30: 1.01 | J30: 3 | K30: 6 | R30: Gebe Kısrak | T30: Canlı ağırlığı : | W30: 500 | AA30: kg | AB30: Canlı ağırlığı : | AK30: FetalGain : | AL30: =(0.00000035512 * (NRCGS*30.4)^2.5512) * 0.01 * (NRCEA*0.097) + 0.00009 * BodyWeight -> 0.045 | AM30: kg/gün | AO30: 3 | AP30: 0.0299 | AS30: 200 | AT30: 4 | AU30: 67.4 | AV30: =AU30/$AS$30*100 -> 33.7 | BA30: İngiliz………………………………. | BB30: 580 | BI30: Sütunları | BK30: ÇAYIR-BAKLAGİL KURU OTU(BAKLAGİL YOĞUN), KÖRPE | BL30: 83.8 | BM30: 2.49 | BN30: 20.5 | BO30: 0.97 | BP30: 2 | BQ30: 41.7 | BR30: 30.5 | BS30: 9.2 | BT30: 1.3 | BU30: 0.3 | BV30: 0.3 | BW30: 2.41 | BX30: 0.03 | BY30: 0.6 | BZ30: 0.2 | CA30: 167 | CB30: 10 | CC30: 24 | CD30: 58 | CE30: 0.15 | CG30: 0 | CH30: 4 | CI30: 6
B31: Yaşı : | C31: =IF(OR(ISERROR(NRCAge),NRCAge=0)=TRUE,0,CONCATENATE(TEXT(NRCAge,"0")," ay")) -> 0 | G31: P, g | H31: 0.99 | I31: 1.01 | J31: 3 | K31: 6 | R31: Emziren Kısrak | T31: Yaşama Payı seviyesi : | AB31: Yaşama Payı seviyesi | AK31: DailyGain : | AL31: =IF(OR(AnimalType="Gebe Kısrak",AnimalType="Emziren Kısrak")=TRUE, FetalGain*1.25, IF(AnimalType="Tay", NRCEA * (6.97121 * EXP(-0.0772 * NRCAge)) / (30.4*100) )) -> FALSE | AM31: kg/gün | AO31: 4 | AP31: 0.0271 | AS31: 200 | AT31: 6 | AU31: 86.4 | AV31: 43.2 | BA31: Arap………………………………. | BB31: 455 | BI31: BL | BK31: ÇAYIR-BAKLAGİL KURU OTU(BAKLAGİL YOĞUN), OLGUN | BL31: 84.3 | BM31: 2.2 | BN31: 17.2 | BO31: 0.8 | BP31: 1.7 | BQ31: 53.6 | BR31: 41.5 | BS31: 8.7 | BT31: 1.09 | BU31: 0.28 | BV31: 0.25 | BW31: 2.53 | BX31: 0.01 | BY31: 0.21 | BZ31: 0.26 | CA31: 141 | CB31: 8 | CC31: 24 | CD31: 43 | CE31: 0.15 | CG31: 0 | CH31: 4 | CI31: 6
B32: Ergin canlı ağırlığı : | C32: =IF(OR(ISERROR(NRCEA),NRCEA=0)=TRUE,0,CONCATENATE(TEXT(NRCEA,"0")," kg")) -> 500 kg | G32: Ca/P | H32: 0.99 | I32: 1.01 | J32: 4 | K32: 6 | R32: Çalışan At | T32: Çalışma durumu : | W32: Orta | AB32: Çalışma durumu : | AK32: MilkProd : | AL32: =IF(AnimalType="Emziren Kısrak", IF(ISERROR(VLOOKUP(LaktSure,AO28:AP33,2,FALSE))=TRUE,0, VLOOKUP(LaktSure,AO28:AP33,2,FALSE) * NRCCA), 0) -> 0 | AM32: kg/gün | AO32: 5 | AP32: 0.0244 | AS32: 200 | AT32: 12 | AU32: 128.5 | AV32: 64.25 | BA32: Hanover………………………………. | BB32: 580 | BI32: BM | BK32: ÇAYIR-BAKLAGİL KURU OTU(ÇAYIR OTU YOĞUN), KÖRPE | BL32: 84.3 | BM32: 2.35 | BN32: 18.4 | BO32: 0.72 | BP32: 2.4 | BQ32: 49.6 | BR32: 31.5 | BS32: 9.2 | BT32: 1.01 | BU32: 0.31 | BV32: 0.26 | BW32: 2.83 | BX32: 0.03 | BY32: 0.74 | BZ32: 0.28 | CA32: 117 | CB32: 9 | CC32: 25 | CD32: 53 | CE32: 0.09 | CG32: 0 | CH32: 7 | CI32: 6
B33: Canlı ağırlığı : | C33: =IF(OR(ISERROR(NRCCA),NRCCA=0)=TRUE,0,CONCATENATE(TEXT(NRCCA,"0")," kg")) -> 500 kg | G33: Mg, g | H33: 0.99 | I33: 1.01 | J33: 3.5 | K33: 7 | R33: Tay | T33: Gebelik süresi : | AA33: ay | AB33: Gebelik süresi : | AK33: BodyWeight : | AL33: =IF(AnimalType="Tay", NRCEA * (9.7 + (90.3 * (1 - EXP(-0.0772 * NRCAge)))) / 100, NRCCA ) -> 500 | AM33: kg | AO33: 6 | AP33: 0.0218 | AS33: 200 | AT33: 18 | AU33: 155 | AV33: 77.5 | BA33: Quarter………………………………. | BB33: 555 | BI33: BN | BK33: ÇAYIR-BAKLAGİL KURU OTU(ÇAYIR OTU YOĞUN), OLGUN | BL33: 84.7 | BM33: 2.08 | BN33: 13.3 | BO33: 0.51 | BP33: 2.3 | BQ33: 62.5 | BR33: 42.1 | BS33: 7.9 | BT33: 0.73 | BU33: 0.27 | BV33: 0.21 | BW33: 2.09 | BX33: 0.1 | BY33: 0.71 | BZ33: 0.29 | CA33: 124 | CB33: 8 | CC33: 24 | CD33: 74 | CE33: 0.09 | CG33: 0 | CH33: 7 | CI33: 6
B34: Çalışma durumu : | C34: =WorkLevel -> Orta | G34: K, g | H34: 0.99 | I34: 1.01 | J34: 2 | K34: 7 | T34: Emzirme süresi : | AA34: ay | AB34: Laktasyon süresi : | AK34: SweatLoss : | AL34: =IF(AnimalType="Aygır", NRCCA* 0.0025, IF(AnimalType="Çalışan At", IF(WorkLevel="Hafif",NRCCA*0.0025, IF(WorkLevel="Orta",NRCCA*0.005, IF(WorkLevel="Ağır",NRCCA*0.01, IF(WorkLevel="Çok Ağır",NRCCA*0.02, 0)))), IF(AnimalType="Tay", IF(WorkLevel="Çalışmıyor", 0, IF(WorkLevel="Hafif", 0.0025* BodyWeight, IF(WorkLevel="Orta", 0.005 * BodyWeight, IF(WorkLevel="Ağır", 0.01 * BodyWeight, IF(WorkLevel="Çok Ağır", 0.02 * BodyWeight, 0))))), 0))) -> 2.5 | AM34: kg/gün | AS34: 200 | AT34: 24 | AU34: 172 | AV34: 86 | BA34: Belçika………………………………. | BB34: 863 | BI34: BO | BK34: ÇAYIR-BAKLAGİL KURU OTU(ÇAYIR OTU YOĞUN), ORTA OLGUN | BL34: 87.3 | BM34: 2.19 | BN34: 17.4 | BO34: 0.68 | BP34: 2.6 | BQ34: 55.1 | BR34: 36.4 | BS34: 9.5 | BT34: 1.17 | BU34: 0.3 | BV34: 0.27 | BW34: 2.34 | BX34: 0.08 | BY34: 0.43 | BZ34: 0.26 | CA34: 141 | CB34: 9 | CC34: 24 | CD34: 49 | CE34: 0.15 | CG34: 0 | CH34: 7 | CI34: 6
B35: Yaşama Payı Seviyesi : | C35: =MaintLevel -> 0 | G35: Na, g | H35: 0.99 | I35: 1.01 | J35: 10 | K35: 20 | AS35: 200 | AT35: 36 | AU35: 189 | AV35: 94.5 | BA35: Morgan………………………………. | BB35: 454 | BI35: BP | BK35: ÇAYIR-BAKLAGİL KURU OTU, KÖRPE | BL35: 83.1 | BM35: 2.46 | BN35: 19.7 | BO35: 0.85 | BP35: 2.5 | BQ35: 45.4 | BR35: 30.8 | BS35: 8.8 | BT35: 1.01 | BU35: 0.31 | BV35: 0.26 | BW35: 2.83 | BX35: 0.03 | BY35: 0.74 | BZ35: 0.28 | CA35: 117 | CB35: 9 | CC35: 25 | CD35: 53 | CE35: 0.09 | CG35: 0 | CH35: 7 | CI35: 6
B36: Gebelik Süresi : | C36: =IF(OR(ISERROR(NRCGS),NRCGS=0)=TRUE,0,CONCATENATE(TEXT(NRCGS,"0")," ay")) -> 0 | G36: Cl, g | H36: 0.99 | I36: 1.01 | J36: 6.5 | K36: 13 | AK36: =CONCATENATE("Verdiğiniz bilgilere göre bu tayın canlı ağırlığı ",TEXT(BodyWeight,0)," kg olması gerekir.") -> Verdiğiniz bilgilere göre bu tayın canlı ağırlığı 500 kg olması gerekir. | AS36: 400 | AT36: 4 | AU36: 134.8 | AV36: =AU36/$AS$36*100 -> 33.7 | BA36: Pony………………………………. | BB36: 195 | BI36: BQ | BK36: ÇAYIR-BAKLAGİL KURU OTU, OLGUN | BL36: 89.7 | BM36: 2.11 | BN36: 18.2 | BO36: 0.77 | BP36: 2 | BQ36: 56 | BR36: 40.1 | BS36: 9.9 | BT36: 0.97 | BU36: 0.37 | BV36: 0.26 | BW36: 2.24 | BX36: 0.01 | BY36: 0.93 | BZ36: 0.28 | CA36: 403 | CB36: 9 | CC36: 27 | CD36: 75 | CE36: 0.12 | CG36: 0 | CH36: 7 | CI36: 6
B37: Emzirme Süresi : | C37: =IF(OR(ISERROR(LaktSure),LaktSure=0)=TRUE,0,CONCATENATE(TEXT(LaktSure,"0")," ay")) -> 0 | G37: Fe, mg | H37: 0.99 | I37: 1.01 | J37: 7 | K37: 14 | T37: İHTİYAÇLAR | AB37: İHTİYAÇLAR | AC37: Birim | AD37: Ya.Payı | AE37: Aygır | AF37: Gebe | AG37: Emziren | AH37: Çalışan | AI37: Tay | AJ37: Tay | AS37: 400 | AT37: 6 | AU37: 173 | AV37: 43.25 | BI37: BR | BK37: ÇAYIR-BAKLAGİL KURU OTU, ORTA OLGUN | BL37: 85.3 | BM37: 2.3 | BN37: 18.4 | BO37: 0.79 | BP37: 2.3 | BQ37: 50.8 | BR37: 35.8 | BS37: 9.3 | BT37: 1.04 | BU37: 0.32 | BV37: 0.25 | BW37: 2.59 | BX37: 0.03 | BY37: 0.8 | BZ37: 0.24 | CA37: 197 | CB37: 9 | CC37: 25 | CD37: 59 | CE37: 0.12 | CG37: 0 | CH37: 7 | CI37: 6
G38: Cu, mg | H38: 0.99 | I38: 1.01 | J38: 14.5 | K38: 29 | T38: KM : | W38: =IF(AnimalType="Yaşama Payı", AD38, IF(AnimalType="Aygır", AE38,IF(AnimalType="Gebe Kısrak", AF38,IF(AnimalType="Emziren Kısrak", AG38,IF(AnimalType="Çalışan At", AH38, IF(AnimalType="Tay", AI38, 0 )))))) -> 11.25 | Y38: kg/gün | AB38: KM : | AC38: kg/gün | AD38: =IntakeLevel/100*BodyWeight -> 11.25 | AE38: 11.25 | AF38: 11.25 | AG38: 11.25 | AH38: 11.25 | AI38: 11.25 | AS38: 400 | AT38: 12 | AU38: 257 | AV38: 64.25 | BI38: BS | BK38: ÇAYIR-BAKLAGİL SİLAJI, KÖRPE | BL38: 45.9 | BM38: 2.39 | BN38: 20.3 | BO38: 0.78 | BP38: 2.3 | BQ38: 45.3 | BR38: 30.8 | BS38: 9.8 | BT38: 1.08 | BU38: 0.35 | BV38: 0.28 | BW38: 2.89 | BX38: 0.01 | BY38: 1.77 | BZ38: 0.16 | CA38: 328 | CB38: 9 | CC38: 29 | CD38: 71 | CE38: 0.14 | CG38: 0 | CH38: 3 | CI38: 4
G39: Zn, mg | H39: 0.99 | I39: 1.01 | J39: 6.5 | K39: 13 | T39: SE: | W39: 23.31 | Y39: Mcal/gün | AB39: SE: | AC39: Mcal/gün | AD39: =IF(MaintLevel="Düşük",NRCCA*0.0303, IF(MaintLevel="Orta",NRCCA*0.0333, IF(MaintLevel="Yüksek",NRCCA*0.0363, 0))) -> 0 | AE39: =IF(WorkLevel="Aşımda kullanılmıyor",NRCCA*0.0363, IF(WorkLevel="Aşımda kullanılıyor",NRCCA*0.0363*1.2, 0)) -> 0 | AF39: =IF(NRCGS<5, BodyWeight*0.0333, (0.0333 * BodyWeight ) + (0.0333 * 2 * (FetalMass+PUMass)) + ((0.03*FetalGain*9.4 ) + (0.2*FetalGain*5.6))/0.6 ) -> 16.65 | AG39: =IF(NRCCA>700, (0.0333 * NRCCA ) + ((MilkProd * 10 * 50)/ (1000 * 0.6)), (0.0363 * NRCCA ) + ((MilkProd * 10 * 50)/ (1000 * 0.6)) ) -> 18.15 | AH39: =IF(WorkLevel="Hafif",NRCCA*0.0333*1.2, IF(WorkLevel="Orta",NRCCA*0.0333*1.4, IF(WorkLevel="Ağır",NRCCA*0.0333*1.6, IF(WorkLevel="Çok Ağır",NRCCA*0.0363*1.9, 0)))) -> 23.31 | AI39: =IF(WorkLevel="Çalışmıyor", ( (56.5 * NRCAge^-0.145)/1000) * BodyWeight + (1.99 + 1.21 * NRCAge - 0.021 * NRCAge^2) * DailyGain, IF(WorkLevel="Hafif", (((56.5 * NRCAge^-0.145)/1000) * 1.2 * BodyWeight + (1.99 + 1.21 * NRCAge - 0.021 * NRCAge^2) * DailyGain), IF(WorkLevel="Orta", (((56.5 * NRCAge^-0.145)/1000) * 1.4 * BodyWeight + (1.99 + 1.21 * NRCAge - 0.021 * NRCAge^2) * DailyGain), IF(WorkLevel="Ağır", (((56.5 * NRCAge^-0.145)/1000) * 1.6 * BodyWeight + (1.99 + 1.21 * NRCAge - 0.021 * NRCAge^2) * DailyGain), IF(WorkLevel="Çok Ağır", (((56.5 * NRCAge^-0.145)/1000) * 1.9 * BodyWeight + (1.99 + 1.21 * NRCAge - 0.021 * NRCAge^2) * DailyGain), 0 ))))) ->  | AS39: 400 | AT39: 18 | AU39: 310 | AV39: 77.5 | BI39: BT | BK39: ÇAYIR-BAKLAGİL SİLAJI, OLGUN | BL39: 42.8 | BM39: 2.07 | BN39: 17.4 | BO39: 0.67 | BP39: 2.3 | BQ39: 57.4 | BR39: 42.1 | BS39: 9.6 | BT39: 1.06 | BU39: 0.33 | BV39: 0.24 | BW39: 2.7 | BX39: 0.02 | BY39: 0.52 | BZ39: 0.31 | CA39: 262 | CB39: 9 | CC39: 30 | CD39: 72 | CE39: 0.14 | CG39: 0 | CH39: 3 | CI39: 4
G40: Mn, mg | H40: 0.99 | I40: 1.01 | J40: 5.5 | K40: 11 | R40: Çalışma durumu, Aygır | T40: HP: | W40: 767.8670886 | Y40: g/gün | AB40: HP: | AC40: g/gün | AD40: =IF(MaintLevel="Düşük",NRCCA*1.08, IF(MaintLevel="Orta",NRCCA*1.26, IF(MaintLevel="Yüksek",NRCCA*1.44, 0))) -> 0 | AE40: =IF(WorkLevel="Aşımda kullanılmıyor",NRCCA*1.44, IF(WorkLevel="Aşımda kullanılıyor",BodyWeight*1.44 + (SweatLoss*7.8*2/0.79) + 0.089 * BodyWeight, 0)) -> 0 | AF40: =IF(NRCGS<5, BodyWeight*1.26, (1.26 * BodyWeight ) + (FetalGain * 1000 * 2 * 0.2/0.79) ) -> 630 | AG40: =(1.44 * NRCCA) + (MilkProd * 50) -> 720 | AH40: =IF(WorkLevel="Hafif",(1.26 * BodyWeight ) + (0.089 * BodyWeight)+ (SweatLoss * 7.8 * 2 / 0.79), IF(WorkLevel="Orta",(1.26 * NRCCA ) + (0.177 * NRCCA)+ (SweatLoss * 7.8 * 2 / 0.79), IF(WorkLevel="Ağır",(1.26 * NRCCA ) + (0.266 * NRCCA)+ (SweatLoss * 7.8 * 2 / 0.79), IF(WorkLevel="Çok Ağır",(1.26 * NRCCA ) + (0.354 * NRCCA)+ (SweatLoss * 7.8 * 2 / 0.79), 0)))) -> 767.8670886 | AI40: =IF(WorkLevel="Çalışmıyor", AJ40, IF(WorkLevel="Hafif", (1.44 * BodyWeight + ((DailyGain * 1000 * 0.2) / 0.3)/0.79 + (SweatLoss* 7.8 * 2 / 0.79) + 0.089 * BodyWeight), IF(WorkLevel="Orta", (1.44 * BodyWeight + ((DailyGain * 1000 * 0.2) / 0.3)/0.79 + (SweatLoss* 7.8 * 2 / 0.79) + 0.177 * BodyWeight), IF(WorkLevel="Ağır", (1.44 * BodyWeight + ((DailyGain * 1000 * 0.2) / 0.3)/0.79 + (SweatLoss* 7.8 * 2 / 0.79) + 0.266 * BodyWeight), IF(WorkLevel="Çok Ağır", (1.44 * BodyWeight + ((DailyGain * 1000 * 0.2) / 0.3)/0.79 + (SweatLoss* 7.8 * 2 / 0.79) + 0.354 * BodyWeight), 0 ))))) -> 857.8670886 | AJ40: =IF(NRCAge<6.5, (1.44 * BodyWeight + ((DailyGain * 1000 * 0.2) / 0.5) / 0.79), IF(NRCAge<8.5, (1.44 * BodyWeight + ((DailyGain * 1000 * 0.2) / 0.45) / 0.79), IF(NRCAge<10.5, (1.44 * BodyWeight + ((DailyGain * 1000 * 0.2) / 0.4) / 0.79), IF(NRCAge<11.5, (1.44 * BodyWeight + ((DailyGain * 1000 * 0.2) / 0.35) / 0.79), (1.44 * BodyWeight + ((DailyGain * 1000 * 0.2) / 0.3) / 0.79) )))) -> 720 | AS40: 400 | AT40: 24 | AU40: 343.4 | AV40: 85.85 | BI40: BU | BK40: ÇAYIR-BAKLAGİL SİLAJI, ORTA OLGUN | BL40: 44.1 | BM40: 2.25 | BN40: 19.1 | BO40: 0.74 | BP40: 2.5 | BQ40: 50.4 | BR40: 35.4 | BS40: 10.1 | BT40: 1.09 | BU40: 0.35 | BV40: 0.27 | BW40: 2.8 | BX40: 0.01 | BY40: 1.1 | BZ40: 0.26 | CA40: 252 | CB40: 9 | CC40: 31 | CD40: 71 | CE40: 0.14 | CG40: 0 | CH40: 3 | CI40: 4
G41: Se, mg | H41: 0.99 | I41: 1.01 | J41: 100 | K41: 200 | R41: Aşımda kullanılıyor | T41: Lizin: | W41: 33.01828481 | Y41: g/gün | AB41: Lizin: | AC41: g/gün | AD41: =0.043*AD40 -> 0 | AE41: =0.043*AE40 -> 0 | AF41: =0.043*AF40 -> 27.09 | AG41: =(0.043 * 1.44 * NRCCA) + (MilkProd * 3.3) -> 30.96 | AH41: =0.043*AH40 -> 33.01828481 | AI41: =0.043*AI40 -> 36.88828481 | AS41: 400 | AT41: 36 | AU41: 379 | AV41: 94.75 | BI41: BV | BK41: MISIR KOÇANI | BL41: 90.8 | BM41: 1.76 | BN41: 3 | BO41: 0.08 | BP41: 0.6 | BQ41: 86.2 | BR41: 42.2 | BS41: 2.2 | BT41: 0.1 | BU41: 0.06 | BV41: 0.06 | BW41: 0.9 | BX41: 0.04 | BY41: 0 | BZ41: 0.07 | CA41: 254 | CB41: 6 | CC41: 11 | CD41: 5 | CE41: 0.08 | CF41: 0 | CI41: 3
G42: Vit.A, IU | H42: 0.99 | I42: 1.01 | J42: 34 | K42: 68 | R42: Aşımda kullanılmıyor | T42: Ca: | W42: 35 | Y42: g/gün | AB42: Ca: | AC42: g/gün | AD42: =NRCCA*0.04 -> 20 | AE42: =IF(WorkLevel="Aşımda kullanılmıyor",NRCCA*0.04, IF(WorkLevel="Aşımda kullanılıyor",NRCCA*0.06, 0)) -> 0 | AF42: =IF(NRCGS<7, BodyWeight*0.04, IF(NRCGS<9, BodyWeight*0.056, BodyWeight*0.072 )) -> 20 | AG42: =IF(LaktSure<4, 0.04 * NRCCA + ((MilkProd * 1.2)/0.5), 0.04 * NRCCA + ((MilkProd * 0.8)/0.5) ) -> 20 | AH42: =IF(WorkLevel="Hafif",NRCCA*0.06, IF(WorkLevel="Orta",NRCCA*0.07, IF(WorkLevel="Ağır",NRCCA*0.08, IF(WorkLevel="Çok Ağır",NRCCA*0.08, 0)))) -> 35 | AI42: =(0.072 * BodyWeight) + (32 * DailyGain) -> 36 | AS42: 500 | AT42: 4 | AU42: 168.5 | AV42: =AU42/$AS$42*100 -> 33.7 | BI42: BW | BK42: MISIR SİLAJI, %27-29 KM | BL42: 29 | BM42: 2.59 | BN42: 8.8 | BO42: 0.23 | BP42: 3.2 | BQ42: 45 | BR42: 28.1 | BS42: 4.3 | BT42: 0.28 | BU42: 0.26 | BV42: 0.17 | BW42: 1.2 | BX42: 0.01 | BY42: 0.29 | BZ42: 0.14 | CA42: 104 | CB42: 6 | CC42: 24 | CD42: 36 | CE42: 0.04 | CG42: 0 | CH42: 5 | CI42: 2.5
T43: P: | W43: 21 | Y43: g/gün | AB43: P: | AC43: g/gün | AD43: =NRCCA*0.028 -> 14 | AE43: =IF(WorkLevel="Aşımda kullanılmıyor",NRCCA*0.028, IF(WorkLevel="Aşımda kullanılıyor",NRCCA*0.036, 0)) -> 0 | AF43: =IF(NRCGS<7, BodyWeight*0.028, IF(NRCGS<9, BodyWeight*0.04, BodyWeight*0.0525 )) -> 14 | AG43: =IF(LaktSure<4, (0.01/0.45 * NRCCA) + ((MilkProd * 0.75)/0.45), (0.01/0.45 * NRCCA) + ((MilkProd * 0.5)/0.45) ) -> 11.11111111 | AH43: =IF(WorkLevel="Hafif",NRCCA*0.036, IF(WorkLevel="Orta",NRCCA*0.042, IF(WorkLevel="Ağır",NRCCA*0.058, IF(WorkLevel="Çok Ağır",NRCCA*0.058, 0)))) -> 21 | AI43: =(0.04 * BodyWeight) + (17.8 * DailyGain) -> 20 | AS43: 500 | AT43: 6 | AU43: 215.9 | AV43: 43.18 | BI43: BX | BK43: MISIR SİLAJI, %30-35 KM | BL43: 32 | BM43: 2.75 | BN43: 8.8 | BO43: 0.22 | BP43: 3.2 | BQ43: 45 | BR43: 28.1 | BS43: 4.3 | BT43: 0.28 | BU43: 0.26 | BV43: 0.17 | BW43: 1.2 | BX43: 0.01 | BY43: 0.29 | BZ43: 0.14 | CA43: 104 | CB43: 6 | CC43: 24 | CD43: 36 | CE43: 0.04 | CG43: 0 | CH43: 4 | CI43: 2.5
B44: Hayvan sayısını giriniz : | C44: 10 | R44: Çalışma durumu, İş Atı | AS44: 500 | AT44: 12 | AU44: 321.2 | AV44: 64.24 | BI44: BY | BK44: MISIR SİLAJI, OLGUN >%40 KM | BL44: 44.2 | BM44: 2.78 | BN44: 8.5 | BO44: 0.21 | BP44: 3.2 | BQ44: 44.5 | BR44: 27.5 | BS44: 4 | BT44: 0.26 | BU44: 0.25 | BV44: 0.16 | BW44: 1.1 | BX44: 0.01 | BY44: 0.17 | BZ44: 0.1 | CA44: 92 | CB44: 6 | CC44: 23 | CD44: 36 | CE44: 0.04 | CG44: 0 | CH44: 4 | CI44: 2.5
B45: Öğün sayısını giriniz : | C45: 2 | R45: Hafif | T45: Mg: | W45: =IF(AnimalType="Yaşama Payı", AD45, IF(AnimalType="Aygır", AE45,IF(AnimalType="Gebe Kısrak", AF45,IF(AnimalType="Emziren Kısrak", AG45,IF(AnimalType="Çalışan At", AH45, IF(AnimalType="Tay", AI45, 0 )))))) -> 11.5 | Y45: g/gün | AB45: Mg: | AC45: g/gün | AD45: =NRCCA*0.015 -> 7.5 | AE45: =IF(WorkLevel="Aşımda kullanılmıyor",NRCCA*0.015, IF(WorkLevel="Aşımda kullanılıyor",NRCCA*0.019, 0)) -> 0 | AF45: =IF(NRCGS<7, BodyWeight*0.015, IF(NRCGS<9, BodyWeight*0.0152, BodyWeight*0.0153 )) -> 7.5 | AG45: =IF(LaktSure<6, (0.015 * NRCCA) + ((MilkProd * 0.09)/0.4), (0.015 * NRCCA) + ((MilkProd * 0.045)/0.4) ) -> 7.5 | AH45: =IF(WorkLevel="Hafif",NRCCA*0.019, IF(WorkLevel="Orta",NRCCA*0.023, IF(WorkLevel="Ağır",NRCCA*0.03, IF(WorkLevel="Çok Ağır",NRCCA*0.03, 0)))) -> 11.5 | AI45: =IF(WorkLevel="Çalışmıyor", (0.015 * BodyWeight) + (1.25 * DailyGain), IF(OR(WorkLevel="Hafif", WorkLevel="Orta", WorkLevel="Ağır", WorkLevel="Çok Ağır")=TRUE, 0.03 * BodyWeight, 0 )) -> 15 | AS45: 500 | AT45: 18 | AU45: 387.5 | AV45: 77.5 | BI45: BZ | BK45: PAMUK TOHUMU KAPÇIĞI | BL45: 89 | BM45: 1.69 | BN45: 6.2 | BO45: 0.29 | BP45: 2.5 | BQ45: 85 | BR45: 64.9 | BS45: 2.8 | BT45: 0.18 | BU45: 0.12 | BV45: 0.17 | BW45: 1.16 | BX45: 0.02 | BY45: 0.06 | BZ45: 0.07 | CA45: 68 | CB45: 5 | CC45: 17 | CD45: 22 | CE45: 0 | CF45: 0 | CI45: 9
R46: Orta | T46: K: | W46: 32 | Y46: g/gün | AB46: K: | AC46: g/gün | AD46: =NRCCA*0.05 -> 25 | AE46: =IF(WorkLevel="Aşımda kullanılmıyor",NRCCA*0.05, IF(WorkLevel="Aşımda kullanılıyor",NRCCA*0.05 + (1.4/0.5)*SweatLoss, 0)) -> 0 | AF46: =IF(NRCGS<9, BodyWeight*0.05, BodyWeight*0.0517 ) -> 25 | AG46: =IF(LaktSure<4, (0.05 * NRCCA) + ((MilkProd * 0.7)/0.5), (0.05 * NRCCA) + ((MilkProd * 0.4)/0.5) ) -> 25 | AH46: =(NRCCA*0.05) + ((1.4/0.5)*SweatLoss) -> 32 | AI46: =IF(WorkLevel="Çalışmıyor", (0.05 * BodyWeight) + (3 * DailyGain), IF(OR(WorkLevel="Hafif", WorkLevel="Orta", WorkLevel="Ağır", WorkLevel="Çok Ağır")=TRUE, (0.05 * BodyWeight) + (3 * DailyGain) +(1.4/0.5)*SweatLoss, 0 )) -> 32 | AS46: 500 | AT46: 24 | AU46: 429.2 | AV46: 85.84 | BI46: CA | BK46: SORGUM SİLAJI | BL46: 28.8 | BM46: 2.17 | BN46: 9.1 | BO46: 0.24 | BP46: 2.9 | BQ46: 60.7 | BR46: 38.7 | BS46: 7.5 | BT46: 0.5 | BU46: 0.21 | BV46: 0.27 | BW46: 1.75 | BX46: 0.02 | BY46: 0.6 | BZ46: 0.12 | CA46: 392 | CB46: 9 | CC46: 31 | CD46: 65 | CE46: 0.03 | CG46: 0 | CH46: 5 | CI46: 5
D47: Hayvan | F47: Bir öğünde | R47: Ağır | T47: Na: | W47: 17.75 | Y47: g/gün | AB47: Na: | AC47: g/gün | AD47: =NRCCA*0.02 -> 10 | AE47: =IF(WorkLevel="Aşımda kullanılmıyor",NRCCA*0.02, IF(WorkLevel="Aşımda kullanılıyor",NRCCA*0.02 + 3.1*SweatLoss, 0)) -> 0 | AF47: =IF(NRCGS<9, BodyWeight*0.02, BodyWeight*0.022 ) -> 10 | AG47: =IF(LaktSure<4, 0.02 * NRCCA + (MilkProd * 0.17), 0.02 * NRCCA + (MilkProd * 0.14)) -> 10 | AH47: =NRCCA*0.02 + 3.1*SweatLoss -> 17.75 | AI47: =IF(WorkLevel="Çalışmıyor", (0.02 * BodyWeight) + (1 * DailyGain), IF(OR(WorkLevel="Hafif", WorkLevel="Orta", WorkLevel="Ağır", WorkLevel="Çok Ağır")=TRUE, (0.02 * BodyWeight) + (1 * DailyGain) + 3.1* SweatLoss, 0 )) -> 17.75 | AS47: 500 | AT47: 36 | AU47: 472 | AV47: 94.4 | BI47: CB | BK47: SORGUM, SUDAN KURU OTU | BL47: 86.5 | BM47: 2 | BN47: 9.4 | BO47: 0.33 | BP47: 2.3 | BQ47: 64.8 | BR47: 40 | BS47: 8.7 | BT47: 0.54 | BU47: 0.2 | BV47: 0.32 | BW47: 2.36 | BX47: 0.03 | BY47: 1.16 | BZ47: 0.13 | CA47: 284 | CB47: 10 | CC47: 34 | CD47: 44 | CE47: 0 | CG47: 0 | CH47: 2 | CI47: 6
D48: başına | E48: Günlük | F48: hayvan | G48: Bir öğünde | R48: Çok Ağır | T48: Cl: | W48: 53.25 | Y48: g/gün | AB48: Cl: | AC48: g/gün | AD48: =NRCCA*0.08 -> 40 | AE48: =IF(WorkLevel="Aşımda kullanılmıyor",NRCCA*0.08, IF(WorkLevel="Aşımda kullanılıyor",NRCCA*0.08 + 5.3*SweatLoss, 0)) -> 0 | AF48: =IF(NRCGS<9, BodyWeight*0.08, BodyWeight*0.082 ) -> 40 | AG48: =0.091*NRCCA -> 45.5 | AH48: =NRCCA*0.08 + 5.3*SweatLoss -> 53.25 | AI48: =IF(WorkLevel="Çalışmıyor", IF(NRCAge<6.5,(0.093*BodyWeight),IF(NRCAge<11.5,(0.085*BodyWeight), 0.0825*BodyWeight)), IF(OR(WorkLevel="Hafif", WorkLevel="Orta", WorkLevel="Ağır", WorkLevel="Çok Ağır")=TRUE, (0.0825*BodyWeight) + 5.3* SweatLoss, 0 )) -> 54.5 | AS48: 600 | AT48: 4 | AU48: 202.1 | AV48: =AU48/$AS$48*100 -> 33.68333333 | BI48: CC | BK48: SOYA TOHUM KABUKLARI | BL48: 90.9 | BM48: 2.25 | BN48: 13.9 | BO48: 0.87 | BP48: 2.7 | BQ48: 60.3 | BR48: 44.6 | BS48: 4.8 | BT48: 0.63 | BU48: 0.17 | BV48: 0.25 | BW48: 1.51 | BX48: 0.01 | BY48: 0.05 | BZ48: 0.12 | CA48: 604 | CB48: 10 | CC48: 35 | CD48: 26 | CE48: 0.21 | CG48: 0 | CH48: 3 | CI48: 6
B49: VERİLECEK YEMLER | C49: Oran, % | D49: günlük | E49: toplam | F49: başına | G49: toplam | T49: Fe: | W49: 450 | Y49: mg/gün | AB49: Fe: | AC49: mg/gün | AD49: =AD$38 * 40 -> 450 | AE49: =AE$38 * 40 -> 450 | AF49: =IF(NRCGS<9, AF38*40, AF38*50 ) -> 450 | AG49: =AG$38 * 50 -> 562.5 | AH49: =AH$38 * 40 -> 450 | AI49: =AI$38 * 50 -> 562.5 | AS49: 600 | AT49: 6 | AU49: 259 | AV49: 43.16666667 | BI49: CD | BK49: TRİTİKALE SİLAJI, BAŞAKLI | BL49: 32 | BM49: 2.07 | BN49: 13.8 | BO49: 0.25 | BP49: 3.8 | BQ49: 59.7 | BR49: 39.6 | BS49: 9.7 | BT49: 0.57 | BU49: 0.33 | BV49: 0.19 | BW49: 3.01 | BX49: 0.05 | BY49: 0 | BZ49: 0.21 | CA49: 404 | CB49: 7 | CC49: 37 | CD49: 66 | CE49: 0 | CF49: 0 | CI49: 3
D50: miktar,kg | E50: miktar,kg | F50: miktar,kg | G50: miktar,kg | R50: YEMLER | T50: Cu: | W50: 112.5 | Y50: mg/gün | AB50: Cu: | AC50: mg/gün | AD50: =NRCCA*0.2 -> 100 | AE50: =IF(WorkLevel="Aşımda kullanılmıyor",NRCCA*0.2, IF(WorkLevel="Aşımda kullanılıyor",AE38*10, 0)) -> 0 | AF50: =IF(NRCGS<9, BodyWeight*0.2, BodyWeight*0.25 ) -> 100 | AG50: =0.25*NRCCA -> 125 | AH50: =IF(WorkLevel="Hafif",NRCCA*0.2,IF(WorkLevel="Orta",NRCCA*0.225,IF(OR(WorkLevel="Ağır",WorkLevel="Çok Ağır")=TRUE,NRCCA*0.25,0))) -> 112.5 | AI50: =0.25*BodyWeight -> 125 | AS50: 600 | AT50: 12 | AU50: 385.5 | AV50: 64.25 | BI50: CE | BK50: YONCA KURU OTU,ÇİÇ.BAŞI | BL50: 91 | BM50: 2.47 | BN50: 25 | BO50: 0.32 | BP50: 2 | BQ50: 39.3 | BR50: 28.6 | BS50: 9.2 | BT50: 1.41 | BU50: 0.22 | BV50: 0.34 | BW50: 2.51 | BX50: 0.12 | BY50: 0.34 | BZ50: 0.3 | CA50: 240 | CB50: 12.7 | CC50: 30 | CD50: 36 | CE50: 0.55 | CG50: 0 | CH50: 2 | CI50: 8.5
B51: =At!B5 -> ÇAYIR (MEADOW) KURU OTU | C51: =ROUND((At!C5/At!$C$4)*100,2) -> 71.85 | D51: =ROUND(At!C5,2) -> 8.5 | E51: =ROUND(HayvanSay*At!C5,2) -> 85 | F51: =IF(ISERROR(ROUND(D51/OgunSay,2))=TRUE,"",ROUND(D51/OgunSay,2)) -> 4.25 | G51: =IF(ISERROR(ROUND(F51*HayvanSay,2))=TRUE,"",ROUND(F51*HayvanSay,2)) -> 42.5 | R51: Kaba Yemler | T51: Zn: | W51: 450 | Y51: mg/gün | AB51: Zn: | AC51: mg/gün | AD51: =AD$38 * 40 -> 450 | AE51: 450 | AF51: 450 | AG51: 450 | AH51: 450 | AI51: 450 | AS51: 600 | AT51: 18 | AU51: 465 | AV51: 77.5 | BI51: CF | BK51: YONCA KURU OTU,ÇİÇ.ORTASI | BL51: 91 | BM51: 2.32 | BN51: 22 | BO51: 1.11 | BP51: 2.1 | BQ51: 47.1 | BR51: 31 | BS51: 8.5 | BT51: 1.37 | BU51: 0.22 | BV51: 0.35 | BW51: 1.56 | BX51: 0.12 | BY51: 0.38 | BZ51: 0.28 | CA51: 225 | CB51: 17.7 | CC51: 30.9 | CD51: 28 | CE51: 0.55 | CG51: 0 | CH51: 2 | CI51: 8.5
B52: =At!B6 -> YULAF | C52: =ROUND((At!C6/At!$C$4)*100,2) -> 27.9 | D52: =ROUND(At!C6,2) -> 3.3 | E52: =ROUND(HayvanSay*At!C6,2) -> 33 | F52: 1.65 | G52: 16.5 | R52: Enerji Kaynakları | T52: Mn: | W52: 450 | Y52: mg/gün | AB52: Mn: | AC52: mg/gün | AD52: 450 | AE52: 450 | AF52: 450 | AG52: 450 | AH52: 450 | AI52: 450 | AS52: 600 | AT52: 24 | AU52: 515 | AV52: 85.83333333 | BI52: CG | BK52: YONCA KURU OTU,ÇİÇ.SONU | BL52: 91 | BM52: 2.23 | BN52: 17 | BO52: 0.86 | BP52: 2.1 | BQ52: 53 | BR52: 33.4 | BS52: 8 | BT52: 1.19 | BU52: 0.24 | BV52: 0.27 | BW52: 1.56 | BX52: 0.07 | BY52: 0 | BZ52: 0.3 | CA52: 160 | CB52: 9.9 | CC52: 26.1 | CD52: 42.3 | CE52: 0.55 | CG52: 0 | CH52: 2 | CI52: 8.5
B53: =At!B7 -> REVİTAMİN HORSE (2 kg/t), (50-75 g/at, 25-50 g/tay) | C53: =ROUND((At!C7/At!$C$4)*100,2) -> 0.08 | D53: =ROUND(At!C7,2) -> 0.01 | E53: =ROUND(HayvanSay*At!C7,2) -> 0.1 | F53: 0.01 | G53: 0.1 | R53: Protein Kaynakları | T53: Se: | W53: 1.125 | Y53: mg/gün | AB53: Se: | AC53: mg/gün | AD53: =AD$38 * 0.1 -> 1.125 | AE53: 1.125 | AF53: 1.125 | AG53: 1.125 | AH53: 1.125 | AI53: 1.125 | AS53: 600 | AT53: 36 | AU53: 566.4 | AV53: 94.4 | BI53: CH | BK53: YONCA KURU OTU,OLGUN | BL53: 91 | BM53: 2.13 | BN53: 14 | BO53: 0.7 | BP53: 1.6 | BQ53: 58 | BR53: 39.5 | BS53: 7 | BT53: 1.18 | BU53: 0.21 | BV53: 0.22 | BW53: 2.07 | BX53: 0.08 | BY53: 0 | BZ53: 0.25 | CA53: 170 | CB53: 13.7 | CC53: 22.1 | CD53: 38.5 | CE53: 0.55 | CG53: 0 | CH53: 2 | CI53: 8.5
B54: =At!B8 -> TUZ | C54: =ROUND((At!C8/At!$C$4)*100,2) -> 0.17 | D54: =ROUND(At!C8,2) -> 0.02 | E54: =ROUND(HayvanSay*At!C8,2) -> 0.2 | F54: 0.01 | G54: 0.1 | R54: Vitamin-Mineral Kaynakları | T54: Vit A: | W54: 22500 | Y54: IUx1000/gün | AB54: Vit A: | AC54: IUx1000/gün | AD54: =NRCCA* 30 -> 15000 | AE54: =IF(WorkLevel="Aşımda kullanılmıyor",NRCCA*30, IF(WorkLevel="Aşımda kullanılıyor",NRCCA*45, 0)) -> 0 | AF54: =BodyWeight* 60 -> 30000 | AG54: =NRCCA* 60 -> 30000 | AH54: =NRCCA* 45 -> 22500 | AI54: =BodyWeight* 45 -> 22500 | AS54: 900 | AT54: 4 | AU54: 303.2 | AV54: =AU54/$AS$54*100 -> 33.68888889 | BI54: CI | BK54: YONCA UNU, %17 HP | BL54: 90.3 | BM54: 2.43 | BN54: 19.2 | BO54: 0.83 | BP54: 2.5 | BQ54: 41.6 | BR54: 32.8 | BS54: 11 | BT54: 1.47 | BU54: 0.28 | BV54: 0.29 | BW54: 2.37 | BX54: 0.1 | BY54: 0.65 | BZ54: 0.26 | CA54: 619 | CB54: 9 | CC54: 28 | CD54: 44 | CE54: 0.36 | CG54: 0 | CH54: 2 | CI54: 10
B55: =At!B9 -> 0 | C55: =ROUND((At!C9/At!$C$4)*100,2) -> 0 | D55: =ROUND(At!C9,2) -> 0 | E55: =ROUND(HayvanSay*At!C9,2) -> 0 | F55: 0 | G55: 0 | T55: Kaba Yem : | W55: =IF(AnimalType="Yaşama Payı", AD55, IF(AnimalType="Aygır", AE55,IF(AnimalType="Gebe Kısrak", AF55,IF(AnimalType="Emziren Kısrak", AG55,IF(AnimalType="Çalışan At", AH55, IF(AnimalType="Tay", AI55, 0 )))))) -> 50 | Y55: % | AB55: Kaba Yem : | AC55: % | AD55: 100 | AE55: =IF(WorkLevel="Aşımda kullanılmıyor", 100, 70) -> 70 | AF55: =IF(OR(NRCGS<9, NRCGS>11)=TRUE, 100, IF(NRCGS<=10, 80, 70 )) -> 100 | AG55: =IF(LaktSure<3, 50, 65 ) -> 50 | AH55: =IF(WorkLevel="Hafif", 65, IF(WorkLevel="Orta", 50, IF(OR(WorkLevel="Ağır",WorkLevel="Çok Ağır")=TRUE, 35, 100))) -> 50 | AI55: =IF(NRCAge<12, IF(WorkLevel="Çalışmıyor", 30, "Çalışmamalı" ), IF(NRCAge<18, 40, IF(WorkLevel<>"Çalışmıyor", 50, IF(NRCAge<24, 55, 65 )))) -> Çalışmamalı | AS55: 900 | AT55: 6 | AU55: 388.6 | AV55: 43.17777778 | BK55: YULAF KURU OTU, BAŞAKLI | BL55: 85 | BM55: 2.16 | BN55: 9.1 | BO55: 0.32 | BP55: 2.2 | BQ55: 58 | BR55: 36.4 | BS55: 8.5 | BT55: 0.37 | BU55: 0.22 | BV55: 0.17 | BW55: 2.01 | BX55: 0.33 | BY55: 1.08 | BZ55: 0.14 | CA55: 250 | CB55: 8 | CC55: 23 | CD55: 59 | CE55: 0 | CG55: 0 | CH55: 8 | CI55: 6
B56: =At!B10 -> 0 | C56: =ROUND((At!C10/At!$C$4)*100,2) -> 0 | D56: =ROUND(At!C10,2) -> 0 | E56: =ROUND(HayvanSay*At!C10,2) -> 0 | F56: 0 | G56: 0 | R56: Çalışma durumu, Tay | AS56: 900 | AT56: 12 | AU56: 578.2 | AV56: 64.24444444 | BK56: YULAF SİLAJI, BAŞAKLI | BL56: 34.6 | BM56: 2.04 | BN56: 12.9 | BO56: 0.46 | BP56: 3.4 | BQ56: 60.6 | BR56: 38.9 | BS56: 9.8 | BT56: 0.52 | BU56: 0.31 | BV56: 0.2 | BW56: 2.89 | BX56: 0.24 | BY56: 1.34 | BZ56: 0.19 | CA56: 500 | CB56: 9 | CC56: 29 | CD56: 66 | CE56: 0 | CG56: 0 | CH56: 5 | CI56: 4
B57: =At!B11 -> 0 | C57: =ROUND((At!C11/At!$C$4)*100,2) -> 0 | D57: =ROUND(At!C11,2) -> 0 | E57: =ROUND(HayvanSay*At!C11,2) -> 0 | F57: 0 | G57: 0 | R57: Çalışmıyor | T57: S: | W57: =IF(AnimalType="Yaşama Payı", AD57, IF(AnimalType="Aygır", AE57,IF(AnimalType="Gebe Kısrak", AF57,IF(AnimalType="Emziren Kısrak", AG57,IF(AnimalType="Çalışan At", AH57, IF(AnimalType="Tay", AI57, 0 )))))) -> 16.875 | Y57: g/gün | AB57: S: | AC57: g/gün | AD57: =AD38 * 1000 * 0.0015 -> 16.875 | AE57: 16.875 | AF57: 16.875 | AG57: 16.875 | AH57: 16.875 | AI57: 16.875 | AS57: 900 | AT57: 18 | AU57: 697.5 | AV57: 77.5
B58: =At!B12 -> 0 | C58: =ROUND((At!C12/At!$C$4)*100,2) -> 0 | D58: =ROUND(At!C12,2) -> 0 | E58: =ROUND(HayvanSay*At!C12,2) -> 0 | F58: 0 | G58: 0 | R58: Hafif | T58: Co: | W58: =IF(AnimalType="Yaşama Payı", AD58, IF(AnimalType="Aygır", AE58,IF(AnimalType="Gebe Kısrak", AF58,IF(AnimalType="Emziren Kısrak", AG58,IF(AnimalType="Çalışan At", AH58, IF(AnimalType="Tay", AI58, 0 )))))) -> 0.5625 | Y58: mg/gün | AB58: Co: | AC58: mg/gün | AD58: =AD$38 *0.05 -> 0.5625 | AE58: 0.5625 | AF58: 0.5625 | AG58: 0.5625 | AH58: 0.5625 | AI58: 0.5625 | AS58: 900 | AT58: 24 | AU58: 773 | AV58: 85.88888889
B59: =At!B13 -> 0 | C59: =ROUND((At!C13/At!$C$4)*100,2) -> 0 | D59: =ROUND(At!C13,2) -> 0 | E59: =ROUND(HayvanSay*At!C13,2) -> 0 | F59: 0 | G59: 0 | R59: Orta | T59: I: | W59: 3.99375 | Y59: mg/gün | AB59: I: | AC59: mg/gün | AD59: =AD$38 *0.35 -> 3.9375 | AE59: =AE$38 *0.35 -> 3.9375 | AF59: =IF(NRCGS<9, AF38*0.35, AF38*0.4 ) -> 3.9375 | AG59: =AG$38 *0.35 -> 3.9375 | AH59: =IF(WorkLevel="Hafif",AH$38 *0.35, IF(WorkLevel="Orta",AH$38 *0.355, IF(WorkLevel="Ağır",AH$38 *0.355, IF(WorkLevel="Çok Ağır",AH$38*0.355, 0)))) -> 3.99375 | AI59: =AI$38 *0.35 -> 3.9375 | AS59: 900 | AT59: 36 | AU59: 850 | AV59: 94.44444444
B60: =At!B14 -> 0 | C60: =ROUND((At!C14/At!$C$4)*100,2) -> 0 | D60: =ROUND(At!C14,2) -> 0 | E60: =ROUND(HayvanSay*At!C14,2) -> 0 | F60: 0 | G60: 0 | R60: Ağır | T60: Vit D: | W60: 3300 | Y60: IU/gün | AB60: Vit D: | AC60: IU/gün | AD60: =NRCCA* 6.6 -> 3300 | AE60: =NRCCA* 6.6 -> 3300 | AF60: =BodyWeight* 6.6 -> 3300 | AG60: =NRCCA* 6.6 -> 3300 | AH60: =NRCCA* 6.6 -> 3300 | AI60: =IF(NRCAge<=6,(22.2*BodyWeight), IF(NRCAge<=12, (17.4*BodyWeight), IF(NRCAge<=18,(15.9*BodyWeight), (13.7*BodyWeight) ))) -> 11100
B61: =At!B15 -> 0 | C61: =ROUND((At!C15/At!$C$4)*100,2) -> 0 | D61: =ROUND(At!C15,2) -> 0 | E61: =ROUND(HayvanSay*At!C15,2) -> 0 | F61: 0 | G61: 0 | R61: Çok Ağır | T61: Vit E: | W61: 900 | Y61: IU/gün | AB61: Vit E: | AC61: IU/gün | AD61: =NRCCA* 1 -> 500 | AE61: =IF(WorkLevel="Aşımda kullanılmıyor",NRCCA*1, IF(WorkLevel="Aşımda kullanılıyor",NRCCA*1.6, 0)) -> 0 | AF61: =BodyWeight* 1.6 -> 800 | AG61: =NRCCA* 2 -> 1000 | AH61: =IF(WorkLevel="Hafif",NRCCA*1.6, IF(WorkLevel="Orta",NRCCA*1.8, IF(WorkLevel="Ağır",NRCCA*2, IF(WorkLevel="Çok Ağır",NRCCA*2, 0)))) -> 900 | AI61: =BodyWeight * 2 -> 1000
B62: =At!B16 -> 0 | C62: =ROUND((At!C16/At!$C$4)*100,2) -> 0 | D62: =ROUND(At!C16,2) -> 0 | E62: =ROUND(HayvanSay*At!C16,2) -> 0 | F62: 0 | G62: 0 | T62: Tiamin: | W62: 56.5 | Y62: mg/gün | AB62: Tiamin: | AC62: mg/gün | AD62: =NRCCA* 0.06 -> 30 | AE62: =BodyWeight* 0.06 -> 30 | AF62: =BodyWeight* 0.06 -> 30 | AG62: =NRCCA* 0.075 -> 37.5 | AH62: =IF(WorkLevel="Hafif",NRCCA*0.06, IF(WorkLevel="Orta",NRCCA*0.113, IF(WorkLevel="Ağır",NRCCA*0.125, IF(WorkLevel="Çok Ağır",NRCCA*0.125, 0)))) -> 56.5 | AI62: =BodyWeight * 0.075 -> 37.5
B63: =At!B17 -> 0 | C63: =ROUND((At!C17/At!$C$4)*100,2) -> 0 | D63: =ROUND(At!C17,2) -> 0 | E63: =ROUND(HayvanSay*At!C17,2) -> 0 | F63: 0 | G63: 0 | R63: Yaşama Payı Seviyesi | T63: Riboflavin: | W63: 22.5 | Y63: mg/gün | AB63: Riboflavin: | AC63: mg/gün | AD63: =NRCCA* 0.04 -> 20 | AE63: =BodyWeight* 0.04 -> 20 | AF63: =BodyWeight* 0.04 -> 20 | AG63: =NRCCA* 0.05 -> 25 | AH63: =IF(WorkLevel="Hafif",NRCCA*0.04, IF(WorkLevel="Orta",NRCCA*0.045, IF(WorkLevel="Ağır",NRCCA*0.05, IF(WorkLevel="Çok Ağır",NRCCA*0.05, 0)))) -> 22.5 | AI63: =BodyWeight * 0.05 -> 25
B64: =At!B18 -> 0 | C64: =ROUND((At!C18/At!$C$4)*100,2) -> 0 | D64: =ROUND(At!C18,2) -> 0 | E64: =ROUND(HayvanSay*At!C18,2) -> 0 | F64: 0 | G64: 0 | R64: Düşük
B65: =At!B19 -> 0 | C65: =ROUND((At!C19/At!$C$4)*100,2) -> 0 | D65: =ROUND(At!C19,2) -> 0 | E65: =ROUND(HayvanSay*At!C19,2) -> 0 | F65: 0 | G65: 0 | R65: Orta
B66: =At!B20 -> 0 | C66: =ROUND((At!C20/At!$C$4)*100,2) -> 0 | D66: =ROUND(At!C20,2) -> 0 | E66: =ROUND(HayvanSay*At!C20,2) -> 0 | F66: 0 | G66: 0 | R66: Yüksek
B67: =At!B21 -> 0 | C67: =ROUND((At!C21/At!$C$4)*100,2) -> 0 | D67: =ROUND(At!C21,2) -> 0 | E67: =ROUND(HayvanSay*At!C21,2) -> 0 | F67: 0 | G67: 0
B68: =At!B22 -> 0 | C68: =ROUND((At!C22/At!$C$4)*100,2) -> 0 | D68: =ROUND(At!C22,2) -> 0 | E68: =ROUND(HayvanSay*At!C22,2) -> 0 | F68: 0 | G68: 0
B69: =At!B23 -> 0 | C69: =ROUND((At!C23/At!$C$4)*100,2) -> 0 | D69: =ROUND(At!C23,2) -> 0 | E69: =ROUND(HayvanSay*At!C23,2) -> 0 | F69: 0 | G69: 0
B70: =At!B24 -> 0 | C70: =ROUND((At!C24/At!$C$4)*100,2) -> 0 | D70: =ROUND(At!C24,2) -> 0 | E70: =ROUND(HayvanSay*At!C24,2) -> 0 | F70: 0 | G70: 0
B71: =At!B25 -> 0 | C71: =ROUND((At!C25/At!$C$4)*100,2) -> 0 | D71: =ROUND(At!C25,2) -> 0 | E71: =ROUND(HayvanSay*At!C25,2) -> 0 | F71: 0 | G71: 0
B72: TOPLAM | C72: =ROUND(SUM(C51:C71),0) -> 100 | D72: =ROUND(SUM(D51:D71),0) -> 12 | E72: =ROUND(SUM(E51:E71),0) -> 118 | F72: =ROUND(SUM(F51:F71),0) -> 6 | G72: =ROUND(SUM(G51:G71),0) -> 59
C73: 8 | E73: 5 | F73: 6 | G73: 7
BK90: ENERJİ KAYNAKLARI | BL90: KM,% | BM90: SE,Mcal/kg | BN90: HP,% | BO90: Lizin,% | BP90: HY,% | BQ90: NDF,% | BR90: ADF,% | BS90: HK,% | BT90: Ca,% | BU90: P,% | BV90: Mg,% | BW90: K,% | BX90: Na,% | BY90: Cl,% | BZ90: S,% | CA90: Fe,mg/kg | CB90: Cu,mg/kg | CC90: Zn,mg/kg | CD90: Mn,mg/kg | CE90: Se,mg/kg | CF90: Vit.A,IU/kg | CG90: En az,kg | CH90: En çok,kg | CI90: Fiyat,TL
BK91: ARPA, EZME | BL91: 91 | BM91: 3.67 | BN91: 12.4 | BO91: 0.45 | BP91: 2.2 | BQ91: 20.8 | BR91: 7.2 | BS91: 2.9 | BT91: 0.06 | BU91: 0.39 | BV91: 0.14 | BW91: 0.56 | BX91: 0.02 | BY91: 0.13 | BZ91: 0.12 | CA91: 70 | CB91: 6 | CC91: 38 | CD91: 22 | CE91: 0.11 | CF91: 0 | CG91: 0 | CH91: 2 | CI91: 9.75
BK92: ARPA, MALT ÇİLİ | BL92: 90.5 | BM92: 2.87 | BN92: 20.1 | BO92: 0.88 | BP92: 2.3 | BQ92: 47 | BR92: 21.8 | BS92: 7.4 | BT92: 0.24 | BU92: 0.51 | BV92: 0.18 | BW92: 1.19 | BX92: 0.04 | BY92: 0 | BZ92: 0.29 | CA92: 353 | CB92: 9 | CC92: 65 | CD92: 49 | CE92: 0.67 | CF92: 0 | CG92: 0 | CH92: 0.5 | CI92: 9
BK93: BİRA POSASI,KURU | BL93: 90.7 | BM93: 2.85 | BN93: 29.2 | BO93: 1.19 | BP93: 5.2 | BQ93: 47.4 | BR93: 22.2 | BS93: 4.3 | BT93: 0.3 | BU93: 0.67 | BV93: 0.26 | BW93: 0.5 | BX93: 0.04 | BY93: 0.07 | BZ93: 0.38 | CA93: 224 | CB93: 11 | CC93: 85 | CD93: 45 | CE93: 1.06 | CG93: 0 | CH93: 1 | CI93: 5
BK94: BİRA POSASI,YAŞ | BL94: 21.8 | BM94: 2.8 | BN94: 28.4 | BO94: 0.97 | BP94: 5.2 | BQ94: 47.1 | BR94: 23.1 | BS94: 4.9 | BT94: 0.35 | BU94: 0.59 | BV94: 0.21 | BW94: 0.47 | BX94: 0.01 | BY94: 0.12 | BZ94: 0.33 | CA94: 247 | CB94: 9 | CC94: 91 | CD94: 49 | CE94: 1.06 | CG94: 0 | CH94: 3 | CI94: 5
BK95: BİSKÜVİ YAN ÜRÜNLERİ | BL95: 90.1 | BM95: 3.71 | BN95: 9.7 | BO95: 0.17 | BP95: 10.6 | BQ95: 12.7 | BR95: 6.5 | BS95: 3 | BT95: 0.23 | BU95: 0.29 | BV95: 0.13 | BW95: 0.46 | BX95: 0.68 | BY95: 1.2 | BZ95: 0.13 | CA95: 235 | CB95: 5 | CC95: 38 | CD95: 27 | CG95: 0 | CH95: 1 | CI95: 6
BK96: BUĞDAY KEPEĞİ | BL96: 89.1 | BM96: 3.22 | BN96: 17.3 | BO96: 0.7 | BP96: 4.3 | BQ96: 42.5 | BR96: 15.5 | BS96: 6.3 | BT96: 0.13 | BU96: 1.18 | BV96: 0.53 | BW96: 1.32 | BX96: 0.04 | BY96: 0.16 | BZ96: 0.21 | CA96: 157 | CB96: 11 | CC96: 85 | CD96: 122 | CE96: 0.5 | CG96: 0 | CH96: 2 | CI96: 7
BK97: BUĞDAY KEPEĞİ, RAZMOL | BL97: 89.5 | BM97: 3.4 | BN97: 18.5 | BO97: 0.67 | BP97: 4.5 | BQ97: 36.7 | BR97: 12.1 | BS97: 5 | BT97: 0.16 | BU97: 1.02 | BV97: 0.42 | BW97: 1.38 | BX97: 0.03 | BY97: 0.1 | BZ97: 0.18 | CA97: 158 | CB97: 10 | CC97: 91 | CD97: 125 | CE97: 0.46 | CG97: 0 | CH97: 1 | CI97: 9
BK98: BUĞDAY, EZME | BL98: 89.4 | BM98: 3.83 | BN98: 14.2 | BO98: 0.4 | BP98: 2.3 | BQ98: 13.4 | BR98: 4.4 | BS98: 2 | BT98: 0.05 | BU98: 0.43 | BV98: 0.15 | BW98: 0.5 | BX98: 0.01 | BY98: 0.11 | BZ98: 0.15 | CA98: 72 | CB98: 5 | CC98: 40 | CD98: 42 | CE98: 0.28 | CG98: 0 | CH98: 1 | CI98: 12
BK99: FIRINCILIK YAN ÜRÜNLERİ | BL99: 84.7 | BM99: 3.71 | BN99: 12.5 | BO99: 0.36 | BP99: 9.5 | BQ99: 13.9 | BR99: 6.5 | BS99: 3.8 | BT99: 0.2 | BU99: 0.36 | BV99: 0.13 | BW99: 0.42 | BX99: 0.72 | BY99: 1.2 | BZ99: 0.14 | CA99: 273 | CB99: 5 | CC99: 46 | CD99: 30 | CE99: 0.29 | CF99: 7.7 | CI99: 10
BK100: FIRINCILIK YAN ÜRÜNLERİ, EKMEK ARTIKLARI | BL100: 68.3 | BM100: 3.9 | BN100: 15 | BO100: 0.44 | BP100: 2.2 | BQ100: 8.9 | BR100: 3.1 | BS100: 2.8 | BT100: 0.14 | BU100: 0.2 | BV100: 0.05 | BW100: 0.23 | BX100: 0.85 | BY100: 0.94 | BZ100: 0.17 | CA100: 140 | CB100: 4 | CC100: 16 | CD100: 10 | CE100: 0 | CG100: 0 | CH100: 1 | CI100: 10
BK101: HAVUÇ | BL101: 11 | BM101: 3.63 | BN101: 10 | BO101: 0.43 | BP101: 1.3 | BQ101: 9 | BR101: 8 | BS101: 8.4 | BT101: 0.4 | BU101: 0.35 | BV101: 0.2 | BW101: 2.8 | BX101: 0.48 | BY101: 0.5 | BZ101: 0.17 | CA101: 130 | CB101: 10.4 | CC101: 32.7 | CD101: 31.5 | CE101: 0 | CF101: 0 | CI101: 1.2
BK102: MELAS,ŞEKER KAMIŞI | BL102: 74.3 | BM102: 4.06 | BN102: 5.8 | BO102: 0.06 | BP102: 0.2 | BQ102: 0.4 | BR102: 0.2 | BS102: 13.3 | BT102: 1 | BU102: 0.1 | BV102: 0.42 | BW102: 4.01 | BX102: 0.22 | BY102: 0 | BZ102: 0.47 | CA102: 263 | CB102: 66 | CC102: 21 | CD102: 59 | CE102: 0 | CG102: 0 | CH102: 1 | CI102: 4
BK103: MELAS,ŞEKER PANCARI | BL103: 77.9 | BM103: 4.06 | BN103: 8.5 | BO103: 0.09 | BP103: 0.2 | BQ103: 0.1 | BR103: 0.1 | BS103: 11.4 | BT103: 0.15 | BU103: 0.03 | BV103: 0.29 | BW103: 6.06 | BX103: 1.48 | BY103: 0 | BZ103: 0.6 | CA103: 87 | CB103: 22 | CC103: 18 | CD103: 66 | CE103: 0 | CG103: 0 | CH103: 1 | CI103: 4
BK104: MISIR GRİZİ | BL104: 88.5 | BM104: 3.73 | BN104: 11.9 | BO104: 0.44 | BP104: 4.2 | BQ104: 21.1 | BR104: 6.2 | BS104: 2.7 | BT104: 0.03 | BU104: 0.65 | BV104: 0.26 | BW104: 0.82 | BX104: 0.01 | BY104: 0.1 | BZ104: 0.12 | CA104: 87 | CB104: 3 | CC104: 49 | CD104: 14 | CG104: 0 | CH104: 1 | CI104: 9
BK105: MISIR KOÇANI (TANELİ), ÖĞÜTÜLMÜŞ | BL105: 89.2 | BM105: 3.63 | BN105: 8.6 | BO105: 0.22 | BP105: 3.9 | BQ105: 21.5 | BR105: 8 | BS105: 1.7 | BT105: 0.06 | BU105: 0.29 | BV105: 0.13 | BW105: 0.49 | BX105: 0.03 | BY105: 0.07 | BZ105: 0.1 | CA105: 91 | CB105: 3 | CC105: 27 | CD105: 10 | CE105: 0.07 | CG105: 0 | CH105: 3 | CI105: 10
BK106: MISIR, KIRILMIŞ, KURU | BL106: 88.1 | BM106: 3.88 | BN106: 9.4 | BO106: 0.27 | BP106: 4.2 | BQ106: 9.5 | BR106: 3.4 | BS106: 1.5 | BT106: 0.04 | BU106: 0.3 | BV106: 0.12 | BW106: 0.42 | BX106: 0.02 | BY106: 0.08 | BZ106: 0.1 | CA106: 54 | CB106: 3 | CC106: 27 | CD106: 11 | CE106: 0.07 | CG106: 0 | CH106: 3 | CI106: 9.5
BK107: MISIR, ÖĞÜTÜLMÜŞ, KURU | BL107: 88.1 | BM107: 3.88 | BN107: 9.1 | BO107: 0.26 | BP107: 4.2 | BQ107: 9.5 | BR107: 3.4 | BS107: 1.5 | BT107: 0.04 | BU107: 0.3 | BV107: 0.12 | BW107: 0.42 | BX107: 0.02 | BY107: 0.08 | BZ107: 0.1 | CA107: 54 | CB107: 3 | CC107: 27 | CD107: 11 | CE107: 0.07 | CG107: 0 | CH107: 3 | CI107: 9.5
BK108: MISIR, PUL HALİNE GETİRİLMİŞ | BL108: 88.1 | BM108: 3.88 | BN108: 9.4 | BO108: 0.29 | BP108: 4.2 | BQ108: 9.5 | BR108: 3.4 | BS108: 1.5 | BT108: 0.04 | BU108: 0.3 | BV108: 0.12 | BW108: 0.42 | BX108: 0.02 | BY108: 0.08 | BZ108: 0.1 | CA108: 54 | CB108: 3 | CC108: 27 | CD108: 11 | CE108: 0.07 | CG108: 0 | CH108: 1 | CI108: 11.5
BK109: PATATES | BL109: 24 | BM109: 3.99 | BN109: 9.3 | BO109: 0.39 | BP109: 0.4 | BQ109: 9 | BR109: 1.4 | BS109: 4.8 | BT109: 0.04 | BU109: 0.24 | BV109: 0.14 | BW109: 2.17 | BX109: 0.09 | BY109: 0.28 | BZ109: 0.09 | CA109: 80 | CB109: 28.4 | CC109: 0 | CD109: 41.7 | CE109: 0 | CF109: 0 | CI109: 2.5
BK110: PATATES YAN ÜRÜNLERİ | BL110: 35.4 | BM110: 3.16 | BN110: 10.5 | BO110: 0.44 | BP110: 10.8 | BQ110: 22.1 | BR110: 16.5 | BS110: 12.8 | BT110: 0.49 | BU110: 0.29 | BV110: 0.11 | BW110: 1.04 | BX110: 0.26 | BY110: 0.19 | BZ110: 0.11 | CA110: 1006 | CB110: 11 | CC110: 25 | CD110: 26 | CE110: 0 | CG110: 0 | CH110: 3 | CI110: 25
BK111: PİRİNÇ KEPEĞİ | BL111: 90.6 | BM111: 3.35 | BN111: 15.5 | BO111: 0.72 | BP111: 15.2 | BQ111: 26.1 | BR111: 13.1 | BS111: 10.4 | BT111: 0.07 | BU111: 1.78 | BV111: 0.81 | BW111: 1.57 | BX111: 0.03 | BY111: 0.09 | BZ111: 0.19 | CA111: 239 | CB111: 10 | CC111: 71 | CD111: 186 | CE111: 0.17 | CG111: 0 | CH111: 1 | CI111: 9
BK112: SORGUM, EZME | BL112: 88.6 | BM112: 3.75 | BN112: 11.6 | BO112: 0.28 | BP112: 3.1 | BQ112: 10.9 | BR112: 5.9 | BS112: 2 | BT112: 0.07 | BU112: 0.35 | BV112: 0.17 | BW112: 0.47 | BX112: 0.01 | BY112: 0.06 | BZ112: 0.11 | CA112: 89 | CB112: 6 | CC112: 25 | CD112: 21 | CE112: 0.46 | CF112: 0 | CG112: 0 | CH112: 1 | CI112: 100
BK113: SORGUM, PUL HALİNE GETİRİLMİŞ | BL113: 88.6 | BM113: 3.75 | BN113: 11.6 | BO113: 0.28 | BP113: 3.1 | BQ113: 10.9 | BR113: 5.9 | BS113: 2 | BT113: 0.07 | BU113: 0.35 | BV113: 0.17 | BW113: 0.47 | BX113: 0.01 | BY113: 0.06 | BZ113: 0.11 | CA113: 89 | CB113: 6 | CC113: 25 | CD113: 21 | CE113: 0.46 | CF113: 0 | CG113: 0 | CH113: 1 | CI113: 100
BK114: ŞEKER PANCARI | BL114: 18.5 | BM114: 3.5 | BN114: 7.5 | BO114: 4.35 | BP114: 0.6 | BQ114: 9 | BR114: 1.4 | BS114: 5.5 | BT114: 0.58 | BU114: 0.16 | BV114: 0.66 | BW114: 1.52 | BX114: 0.49 | BY114: 0 | BZ114: 0.06 | CA114: 80 | CB114: 8.1 | CC114: 32.7 | CD114: 114.7 | CE114: 0 | CF114: 0 | CI114: 2
BK115: ŞEKER PANCARI POSASI,KURU | BL115: 88.3 | BM115: 2.8 | BN115: 10 | BO115: 0.44 | BP115: 1.1 | BQ115: 45.8 | BR115: 23.1 | BS115: 7.3 | BT115: 0.91 | BU115: 0.09 | BV115: 0.23 | BW115: 0.96 | BX115: 0.31 | BY115: 0.18 | BZ115: 0.3 | CA115: 642 | CB115: 11 | CC115: 22 | CD115: 62 | CE115: 0.14 | CG115: 0 | CH115: 2 | CI115: 2
BK116: ŞEKER PANCARI POSASI,MELASLI,KURU | BL116: 88 | BM116: 2.84 | BN116: 10 | BO116: 0.42 | BP116: 1.1 | BQ116: 44.4 | BR116: 22.4 | BS116: 7.4 | BT116: 0.89 | BU116: 0.09 | BV116: 0.23 | BW116: 1.11 | BX116: 0.35 | BY116: 0.17 | BZ116: 0.31 | CA116: 625 | CB116: 11.3 | CC116: 22 | CD116: 62 | CE116: 0.14 | CG116: 0 | CH116: 2 | CI116: 2.5
BK117: TRİTİKALE | BL117: 89 | BM117: 3.79 | BN117: 13.3 | BO117: 0.45 | BP117: 1.7 | BQ117: 17.3 | BR117: 5.12 | BS117: 2.09 | BT117: 0.04 | BU117: 0.34 | BV117: 0.26 | BW117: 0.57 | BX117: 0.01 | BY117: 0 | BZ117: 0 | CA117: 50 | CB117: 9.3 | CC117: 35.1 | CD117: 47.8 | CE117: 0 | CF117: 0 | CI117: 20
BK118: TURUNÇGİL POSASI, KURU | BL118: 85.8 | BM118: 2.85 | BN118: 6.9 | BO118: 0.18 | BP118: 4.9 | BQ118: 24.2 | BR118: 22.2 | BS118: 7.2 | BT118: 1.92 | BU118: 0.12 | BV118: 0.12 | BW118: 1.1 | BX118: 0.06 | BY118: 0.08 | BZ118: 0.1 | CA118: 151 | CB118: 8 | CC118: 11 | CD118: 9 | CE118: 0 | CG118: 0 | CH118: 2 | CI118: 20
BK119: YAĞ, BİTKİSEL | BL119: 100 | BM119: 9.19 | BN119: 0 | BO119: 0 | BP119: 99.9 | BQ119: 0 | BR119: 0 | BS119: 0 | BT119: 0 | BU119: 0 | BV119: 0 | BW119: 0 | BX119: 0 | BY119: 0 | BZ119: 0 | CA119: 0 | CB119: 0 | CC119: 0 | CD119: 0 | CE119: 0 | CG119: 0 | CH119: 0.5 | CI119: 1000
BK120: YAĞ, HİDROLİZE (KUYRUK YAĞI YAĞ ASİTLERİ) | BL120: 99.8 | BM120: 9.12 | BN120: 0 | BO120: 0 | BP120: 99.2 | BQ120: 0 | BR120: 0 | BS120: 0 | BT120: 0 | BU120: 0 | BV120: 0 | BW120: 0 | BX120: 0 | BY120: 0 | BZ120: 0 | CA120: 0 | CB120: 0 | CC120: 0 | CD120: 0 | CE120: 0 | CG120: 0 | CH120: 0.5 | CI120: 1000
BK121: YAĞ, KISMİ HİDROJENİZE KUYRUK YAĞI | BL121: 100 | BM121: 9.15 | BN121: 0 | BO121: 0 | BP121: 99.5 | BQ121: 0 | BR121: 0 | BS121: 0 | BT121: 0 | BU121: 0 | BV121: 0 | BW121: 0 | BX121: 0 | BY121: 0 | BZ121: 0 | CA121: 0 | CB121: 0 | CC121: 0 | CD121: 0 | CE121: 0 | CG121: 0 | CH121: 0.5 | CI121: 1000
BK122: YAĞ, KUYRUK | BL122: 99.8 | BM122: 9.18 | BN122: 0 | BO122: 0 | BP122: 99.8 | BQ122: 0 | BR122: 0 | BS122: 0 | BT122: 0 | BU122: 0 | BV122: 0 | BW122: 0 | BX122: 0 | BY122: 0 | BZ122: 0 | CA122: 0 | CB122: 0 | CC122: 0 | CD122: 0 | CE122: 0 | CG122: 0 | CH122: 0.5 | CI122: 1000
BK123: YULAF | BL123: 91 | BM123: 3.23 | BN123: 13.6 | BO123: 0.55 | BP123: 4.9 | BQ123: 42 | BR123: 13.5 | BS123: 3.3 | BT123: 0.07 | BU123: 0.3 | BV123: 0.16 | BW123: 0.45 | BX123: 0.06 | BY123: 0.1 | BZ123: 0.23 | CA123: 80 | CB123: 6.7 | CC123: 39 | CD123: 40 | CE123: 0.24 | CF123: 0.2 | CG123: 0 | CH123: 10 | CI123: 7
BK124: YULAF, EZME | BL124: 90 | BM124: 3.27 | BN124: 13.2 | BO124: 0.55 | BP124: 5.1 | BQ124: 30 | BR124: 14.6 | BS124: 3.3 | BT124: 0.11 | BU124: 0.4 | BV124: 0.16 | BW124: 0.52 | BX124: 0.03 | BY124: 0 | BZ124: 0.19 | CA124: 106 | CB124: 8 | CC124: 41 | CD124: 43 | CE124: 0.48 | CG124: 0 | CH124: 10 | CI124: 8.75
BK125: YULAF, KALİTELİ | BL125: 89 | BM125: 3.33 | BN125: 13.6 | BO125: 0.55 | BP125: 5.2 | BQ125: 29.3 | BR125: 14.6 | BS125: 13.5 | BT125: 0.01 | BU125: 0.41 | BV125: 0.16 | BW125: 0.51 | BX125: 0.02 | BY125: 0.1 | BZ125: 0.21 | CA125: 94 | CB125: 8.6 | CC125: 41 | CD125: 40 | CE125: 0.24 | CF125: 0.2 | CG125: 0 | CH125: 10 | CI125: 8
BK143: PROTEİN KAYNAKLARI | BL143: KM,% | BM143: SE,Mcal/kg | BN143: HP,% | BO143: Lizin,% | BP143: HY,% | BQ143: NDF,% | BR143: ADF,% | BS143: HK,% | BT143: Ca,% | BU143: P,% | BV143: Mg,% | BW143: K,% | BX143: Na,% | BY143: Cl,% | BZ143: S,% | CA143: Fe,mg/kg | CB143: Cu,mg/kg | CC143: Zn,mg/kg | CD143: Mn,mg/kg | CE143: Se,mg/kg | CF143: Vit.A,IU/kg | CG143: En az,kg | CH143: En çok,kg | CI143: Fiyat,TL
BK144: ASPİR KÜSPESİ,SOLVENT | BL144: 93.5 | BM144: 1.92 | BN144: 29 | BO144: 0.92 | BP144: 2.4 | BQ144: 53.8 | BR144: 39.1 | BS144: 4.7 | BT144: 0.48 | BU144: 1 | BV144: 0.63 | BW144: 1.5 | BX144: 0.04 | BY144: 0.12 | BZ144: 0.39 | CA144: 298 | CB144: 32 | CC144: 88 | CD144: 45 | CE144: 0.5 | CG144: 0 | CH144: 2 | CI144: 8.5
BK145: AYÇİÇEĞİ KÜSPESİ, SOLVENT, %25 HP | BL145: 92.2 | BM145: 2.42 | BN145: 28.4 | BO145: 1.01 | BP145: 1.4 | BQ145: 40.3 | BR145: 30 | BS145: 7.7 | BT145: 0.48 | BU145: 1 | BV145: 0.63 | BW145: 1.5 | BX145: 0.04 | BY145: 0.12 | BZ145: 0.39 | CA145: 298 | CB145: 32 | CC145: 88 | CD145: 45 | CE145: 0.5 | CG145: 0 | CH145: 2 | CI145: 11
BK146: AYÇİÇEĞİ KÜSPESİ, SOLVENT, %28 HP | BL146: 92.2 | BM146: 2.5 | BN146: 31 | BO146: 1.1 | BP146: 1 | BQ146: 38 | BR146: 28 | BS146: 7.5 | BT146: 0.48 | BU146: 1 | BV146: 0.63 | BW146: 1.5 | BX146: 0.04 | BY146: 0.12 | BZ146: 0.39 | CA146: 298 | CB146: 32 | CC146: 88 | CD146: 45 | CE146: 0.5 | CG146: 0 | CH146: 2 | CI146: 11
BK147: AYÇİÇEĞİ KÜSPESİ, SOLVENT, %32 HP | BL147: 92.2 | BM147: 2.6 | BN147: 35.6 | BO147: 1.27 | BP147: 1 | BQ147: 36 | BR147: 26 | BS147: 7.3 | BT147: 0.48 | BU147: 1 | BV147: 0.63 | BW147: 1.5 | BX147: 0.04 | BY147: 0.12 | BZ147: 0.39 | CA147: 298 | CB147: 32 | CC147: 88 | CD147: 45 | CE147: 0.5 | CG147: 0 | CH147: 2 | CI147: 11
BK148: AYÇİÇEĞİ KÜSPESİ, SOLVENT, %36 HP | BL148: 92.2 | BM148: 2.8 | BN148: 40 | BO148: 1.42 | BP148: 1 | BQ148: 32 | BR148: 22 | BS148: 7.2 | BT148: 0.48 | BU148: 1 | BV148: 0.63 | BW148: 1.5 | BX148: 0.04 | BY148: 0.12 | BZ148: 0.39 | CA148: 298 | CB148: 32 | CC148: 88 | CD148: 45 | CE148: 0.5 | CG148: 0 | CH148: 2 | CI148: 12
BK149: BALIK UNU, HAMSİ | BL149: 92 | BM149: 4.07 | BN149: 71.2 | BO149: 5.63 | BP149: 4.6 | BQ149: 0 | BR149: 0 | BS149: 16 | BT149: 4.06 | BU149: 2.69 | BV149: 0.27 | BW149: 0.79 | BX149: 0.96 | BY149: 0.8 | BZ149: 0.78 | CA149: 234 | CB149: 10 | CC149: 114 | CD149: 12 | CE149: 1.47 | CG149: 0 | CH149: 1 | CI149: 70
BK150: BALIK UNU, RİNGA | BL150: 91.2 | BM150: 4.07 | BN150: 68.5 | BO150: 5.24 | BP150: 10.4 | BQ150: 0 | BR150: 0 | BS150: 19.7 | BT150: 5.34 | BU150: 3.05 | BV150: 0.2 | BW150: 0.74 | BX150: 0.68 | BY150: 0.8 | BZ150: 1.16 | CA150: 562 | CB150: 7 | CC150: 112 | CD150: 32 | CE150: 2.26 | CG150: 0 | CH150: 1 | CI150: 70
BK151: KANOLA KÜSPESİ, PRES | BL151: 90.3 | BM151: 2.94 | BN151: 37.8 | BO151: 2.12 | BP151: 5.4 | BQ151: 29.8 | BR151: 20.5 | BS151: 7.4 | BT151: 0.75 | BU151: 1.1 | BV151: 0.53 | BW151: 1.41 | BX151: 0.07 | BY151: 0.04 | BZ151: 0.73 | CA151: 296 | CB151: 5 | CC151: 61 | CD151: 62 | CE151: 1.09 | CG151: 0 | CH151: 2 | CI151: 12
BK152: KETEN TOHUMU KÜSPESİ,SOLVENT | BL152: 90.3 | BM152: 2.85 | BN152: 32.6 | BO152: 1.2 | BP152: 1.7 | BQ152: 36.1 | BR152: 22.1 | BS152: 6.5 | BT152: 0.4 | BU152: 0.83 | BV152: 0.55 | BW152: 1.22 | BX152: 0.09 | BY152: 0 | BZ152: 0.37 | CA152: 369 | CB152: 19 | CC152: 69 | CD152: 39 | CE152: 1.05 | CG152: 0 | CH152: 3 | CI152: 12
BK153: MISIR GLUTEN YEMİ | BL153: 89.4 | BM153: 2.82 | BN153: 23.8 | BO153: 0.65 | BP153: 3.5 | BQ153: 35.5 | BR153: 12.1 | BS153: 6.8 | BT153: 0.07 | BU153: 1 | BV153: 0.42 | BW153: 1.46 | BX153: 0.13 | BY153: 0.2 | BZ153: 0.44 | CA153: 196 | CB153: 6 | CC153: 75 | CD153: 23 | CE153: 0.19 | CG153: 0 | CH153: 2 | CI153: 9
BK154: MISIR GLUTENİ,44 | BL154: 86.4 | BM154: 3.4 | BN154: 46.8 | BO154: 0.8 | BP154: 2.5 | BQ154: 23 | BR154: 10 | BS154: 4.5 | BT154: 0.06 | BU154: 0.6 | BV154: 0.14 | BW154: 0.46 | BX154: 0.05 | BY154: 0.11 | BZ154: 0.86 | CA154: 138 | CB154: 4 | CC154: 49 | CD154: 15 | CE154: 0.34 | CG154: 0 | CH154: 2 | CI154: 20
BK155: MISIR GLUTENİ,63 | BL155: 86.4 | BM155: 3.62 | BN155: 65 | BO155: 1.1 | BP155: 2.5 | BQ155: 11.1 | BR155: 8.2 | BS155: 3.3 | BT155: 0.06 | BU155: 0.6 | BV155: 0.14 | BW155: 0.46 | BX155: 0.05 | BY155: 0.11 | BZ155: 0.86 | CA155: 138 | CB155: 4 | CC155: 49 | CD155: 15 | CE155: 0.34 | CG155: 1 | CH155: 2 | CI155: 25
BK156: PAMUK TOHUMU KÜSPESİ, SOLVENT, %41 HP | BL156: 90.5 | BM156: 2.98 | BN156: 44.9 | BO156: 1.85 | BP156: 1.9 | BQ156: 30.8 | BR156: 19.9 | BS156: 6.7 | BT156: 0.2 | BU156: 1.15 | BV156: 0.61 | BW156: 1.64 | BX156: 0.07 | BY156: 0.07 | BZ156: 0.4 | CA156: 149 | CB156: 14 | CC156: 67 | CD156: 24 | CE156: 0.3 | CG156: 0 | CH156: 1 | CI156: 15
BK157: PAMUK TOHUMU, LİNTLİ | BL157: 90.1 | BM157: 2.89 | BN157: 23.5 | BO157: 1.02 | BP157: 19.3 | BQ157: 50.3 | BR157: 40.1 | BS157: 4.2 | BT157: 0.17 | BU157: 0.6 | BV157: 0.37 | BW157: 1.13 | BX157: 0.02 | BY157: 0.06 | BZ157: 0.23 | CA157: 94 | CB157: 7 | CC157: 37 | CD157: 18 | CE157: 0.14 | CF157: 0 | CI157: 80
BK158: PEYNİR ALTI SUYU, SIĞIR | BL158: 20.8 | BM158: 4.07 | BN158: 14.6 | BO158: 1.08 | BP158: 0.7 | BQ158: 0 | BR158: 0 | BS158: 9.8 | BT158: 1.37 | BU158: 1.04 | BV158: 0.22 | BW158: 3.32 | BX158: 1.4 | BY158: 2.41 | BZ158: 1.15 | CA158: 131 | CB158: 2 | CC158: 16 | CD158: 4 | CE158: 0.06 | CF158: 0 | CI158: 70
BK159: SOYA FASULYESİ | BL159: 90 | BM159: 3.35 | BN159: 39.2 | BO159: 2.34 | BP159: 19.2 | BQ159: 19.5 | BR159: 13.1 | BS159: 5.9 | BT159: 0.32 | BU159: 0.6 | BV159: 0.25 | BW159: 1.99 | BX159: 0.01 | BY159: 0.04 | BZ159: 0.31 | CA159: 148 | CB159: 13 | CC159: 49 | CD159: 29 | CE159: 0.28 | CG159: 0 | CH159: 1 | CI159: 40
BK160: SOYA KÜSPESİ, SOLVENT, %44 | BL160: 89.1 | BM160: 3.52 | BN160: 46.8 | BO160: 3 | BP160: 1.6 | BQ160: 20 | BR160: 15 | BS160: 6.6 | BT160: 0.4 | BU160: 0.71 | BV160: 0.31 | BW160: 2.22 | BX160: 0.04 | BY160: 0.13 | BZ160: 0.46 | CA160: 185 | CB160: 22 | CC160: 57 | CD160: 35 | CE160: 0.21 | CG160: 0 | CH160: 1 | CI160: 17
BK161: SOYA KÜSPESİ, SOLVENT, %48 | BL161: 89.5 | BM161: 3.73 | BN161: 49.9 | BO161: 3.13 | BP161: 1.6 | BQ161: 14.9 | BR161: 10 | BS161: 6.6 | BT161: 0.35 | BU161: 0.7 | BV161: 0.29 | BW161: 2.41 | BX161: 0.03 | BY161: 0.13 | BZ161: 0.39 | CA161: 206 | CB161: 16 | CC161: 58 | CD161: 40 | CE161: 0.13 | CG161: 0 | CH161: 1 | CI161: 18
BK162: SOYA KÜSPESİ, SOLVENT, %51 | BL162: 89.5 | BM162: 3.85 | BN162: 53.8 | BO162: 3.38 | BP162: 1.1 | BQ162: 9.8 | BR162: 6.2 | BS162: 6.4 | BT162: 0.35 | BU162: 0.7 | BV162: 0.29 | BW162: 2.41 | BX162: 0.03 | BY162: 0.13 | BZ162: 0.39 | CA162: 206 | CB162: 16 | CC162: 58 | CD162: 40 | CE162: 0.13 | CG162: 0 | CH162: 1 | CI162: 20
BK163: SOYA KÜSPESİ,EKSPELLER, %45 HP | BL163: 89.6 | BM163: 3.5 | BN163: 46.3 | BO163: 2.9 | BP163: 8.1 | BQ163: 21.7 | BR163: 10.4 | BS163: 5.5 | BT163: 0.36 | BU163: 0.66 | BV163: 0.3 | BW163: 2.12 | BX163: 0.04 | BY163: 0.1 | BZ163: 0.34 | CA163: 169 | CB163: 17 | CC163: 72 | CD163: 39 | CE163: 0 | CG163: 0 | CH163: 1 | CI163: 18
BK164: TAM YAĞLI SOYA | BL164: 91 | BM164: 3.26 | BN164: 43 | BO164: 2.57 | BP164: 19 | BQ164: 22.1 | BR164: 14.7 | BS164: 5 | BT164: 0.26 | BU164: 0.64 | BV164: 0.25 | BW164: 1.99 | BX164: 0.01 | BY164: 0.06 | BZ164: 0.32 | CA164: 142 | CB164: 15 | CC164: 48 | CD164: 29 | CE164: 0.28 | CG164: 0 | CH164: 1 | CI164: 18
BK165: TAY SÜT İKAMESİ | BL165: 94.1 | BM165: 4.05 | BN165: 22 | BO165: 1.7 | BP165: 18 | BQ165: 0 | BR165: 0 | BS165: 6.9 | BT165: 1.36 | BU165: 1.09 | BV165: 0.13 | BW165: 1.7 | BX165: 0.54 | BY165: 0.45 | BZ165: 1.15 | CA165: 3.3 | CB165: 10 | CC165: 40 | CD165: 30 | CE165: 0.2 | CF165: 30000 | CI165: 50
BK166: ÜRE | BL166: 100 | BM166: 0 | BN166: 281 | BO166: 0 | BP166: 0 | BQ166: 0 | BR166: 0 | BS166: 0 | BT166: 0 | BU166: 0 | BV166: 0 | BW166: 0 | BX166: 0 | BY166: 0 | BZ166: 0 | CA166: 0 | CB166: 0 | CC166: 0 | CD166: 0 | CE166: 0 | CG166: 0 | CH166: 0.03 | CI166: 17
BK167: YAĞSIZ SÜT TOZU, SIĞIR | BL167: 94.1 | BM167: 4.05 | BN167: 35.5 | BO167: 2.7 | BP167: 0.7 | BQ167: 0 | BR167: 0 | BS167: 6.9 | BT167: 1.36 | BU167: 1.09 | BV167: 0.13 | BW167: 1.7 | BX167: 0.54 | BY167: 0.45 | BZ167: 1.15 | CA167: 3.3 | CB167: 0.42 | CC167: 42 | CD167: 0.2 | CE167: 0.2 | CF167: 0 | CI167: 80
BK168: YERFISTIĞI KÜSPESİ, SOLVENT | BL168: 92.3 | BM168: 3.33 | BN168: 51.8 | BO168: 1.73 | BP168: 1.4 | BQ168: 21.4 | BR168: 13.5 | BS168: 5.8 | BT168: 0.2 | BU168: 0.64 | BV168: 0.32 | BW168: 1.32 | BX168: 0.03 | BY168: 0.1 | BZ168: 0.32 | CA168: 302 | CB168: 13 | CC168: 54 | CD168: 33 | CE168: 0.21 | CG168: 0 | CH168: 1 | CI168: 12
BK184: PREMİKSLER | BL184: KM,% | BM184: SE,Mcal/kg | BN184: HP,% | BO184: Lizin,% | BP184: HY,% | BQ184: NDF,% | BR184: ADF,% | BS184: HK,% | BT184: Ca,% | BU184: P,% | BV184: Mg,% | BW184: K,% | BX184: Na,% | BY184: Cl,% | BZ184: S,% | CA184: Fe,mg/kg | CB184: Cu,mg/kg | CC184: Zn,mg/kg | CD184: Mn,mg/kg | CE184: Se,mg/kg | CF184: Vit.A,IU/kg | CG184: En az,kg | CH184: En çok,kg | CI184: Fiyat,TL
BK185: AMİNOFARM, sıvı (elektrolit denge için) | BL185: 17 | BN185: 1.6 | BO185: 0.6 | BS185: 15.3 | BT185: 4 | BU185: 10 | BV185: 0.5 | BW185: 0.13 | BX185: 0.2 | BZ185: 0.2188 | CA185: 2000 | CB185: 300 | CC185: 1000 | CD185: 1000 | CG185: 0.005 | CH185: 0.04 | CI185: 121
BK186: BİO-MİNVİT DRY (tırnak sağlığı için) | BL186: 100 | BS186: 2 | CC186: 20000 | CG186: 0.02 | CH186: 0.04 | CI186: 121
BK187: COLT MIX (taylar için) | BL187: 100 | BO187: 15 | BS187: 9.2 | BT187: 0.4 | BU187: 0.3 | BV187: 5 | CA187: 12500 | CB187: 2500 | CC187: 10000 | CD187: 10000 | CE187: 50 | CF187: 2000000 | CG187: 0.02 | CH187: 0.04 | CI187: 121
BK188: DCP | BL188: 97 | BM188: 0 | BN188: 0 | BO188: 0 | BP188: 0 | BQ188: 0 | BR188: 0 | BS188: 100 | BT188: 22 | BU188: 19.3 | BV188: 0 | BW188: 0 | BX188: 0 | BY188: 0 | BZ188: 1.14 | CA188: 14.4 | CB188: 0 | CC188: 0 | CD188: 0 | CE188: 0 | CG188: 0 | CH188: 1 | CI188: 35
BK189: HORSE POWER | BL189: 100 | BS189: 20.7 | BT189: 0.53 | BU189: 0.4 | BV189: 4 | BW189: 12.5 | CA189: 10000 | CB189: 3000 | CC189: 10000 | CD189: 10000 | CE189: 40 | CF189: 1500000 | CI189: 121
BK190: KEMİK UNU | BL190: 96 | BM190: 0 | BN190: 12 | BO190: 0.036 | BP190: 0 | BQ190: 0 | BR190: 0 | BS190: 79.3 | BT190: 24 | BU190: 12 | BV190: 0.33 | BW190: 0.19 | BX190: 5.69 | BY190: 0 | BZ190: 2.51 | CA190: 26700 | CB190: 0 | CC190: 100 | CD190: 0 | CE190: 0 | CG190: 0 | CH190: 2 | CI190: 75
BK191: KİREÇTAŞI | BL191: 100 | BM191: 0 | BN191: 0 | BO191: 0 | BP191: 0 | BQ191: 0 | BR191: 0 | BS191: 100 | BT191: 38 | BU191: 0.02 | BV191: 2.06 | BW191: 0.12 | BX191: 0.06 | BY191: 0.03 | BZ191: 0.04 | CA191: 3500 | CB191: 0 | CC191: 0 | CD191: 0 | CE191: 0 | CG191: 0 | CH191: 3 | CI191: 2
BK192: LİZİN HCL | BL192: 100 | BM192: 5.7 | BN192: 94.4 | BO192: 79 | CH192: 0.2 | CI192: 750
BK193: MACROMİN, sıvı | BL193: 9 | BS193: 9 | BT193: 3 | BU193: 3 | BY193: 6.76 | CA193: 2750 | CB193: 1650 | CC193: 3360 | CD193: 5450 | CG193: 0.005 | CH193: 0.03 | CI193: 121
BK194: REVİTAMİN HORSE (2 kg/t), (50-75 g/at, 25-50 g/tay) | BL194: 100 | BS194: 100 | BT194: 0.48 | BU194: 0.36 | BV194: 25 | BZ194: 0.3 | CA194: 12500 | CB194: 3750 | CC194: 15000 | CD194: 12500 | CE194: 50 | CF194: 1500000 | CG194: 0.01 | CH194: 0.075 | CI194: 121
BK195: TUZ | BL195: 100 | BM195: 0 | BN195: 0 | BO195: 0 | BP195: 0 | BQ195: 0 | BR195: 0 | BS195: 100 | BT195: 0 | BU195: 0 | BV195: 0 | BW195: 0 | BX195: 39.34 | BY195: 60.66 | BZ195: 0 | CA195: 0 | CB195: 0 | CC195: 0 | CD195: 0 | CE195: 0 | CG195: 0 | CH195: 0.1 | CI195: 1.5
